{"text_format":"1","workbook":"xlsx","n_sheets":4,"sheets":["1 - ANAGRAFICA","2 - PROGETTO DI REIMPIANTO","3 - RIEPILOGO","Foglio1"],"not_rendered":{"charts":0,"images":6,"macros":1,"external_links":0,"defined_names":16,"comments":0,"pivot_tables":0},"unopened":[],"bounds":{"document_bytes":16777216,"sheet_cells":100000,"rows_first":2000,"rows_last":500,"rows_between":2000,"halvings":0,"cell_chars":16384,"cell_head_chars":4096},"cells_cut":0,"cells_raw":0,"read":"whole","date_system":"1900"}

{"sheet":"1 - ANAGRAFICA","index":0,"n_rows":53,"n_cols":3,"rows_kept":53,"cut":false,"hidden":false,"merged":[[1,1,3,2],[44,2,47,2],[52,2,55,2],[29,1,29,2],[5,1,5,2],[8,1,8,2],[17,1,17,2],[20,1,20,2],[6,1,6,2],[32,1,32,2],[37,1,37,2]]}
[]
[]
[]
[]
[]
[null,"AVVISO PUBBLICO:\nSottomisura 5.2 \"Sostegno a investimenti per il ripristino dei terreni agricoli e del potenziale produttivo danneggiati da calamità naturali, avversità atmosferiche ed eventi catastrofici\""]
[]
[]
[null,"QUADRO 1.1 - DATI IDENTIFICATIVI  DEL RICHIEDENTE"]
[null,"CUAA / P.IVA"]
[null,"Cognome/Ragione sociale"]
[null,"Nome"]
[null,"Nato a "]
[null,"Prov."]
[null,"Il","gg/mm/aa"]
[null,"Recapito telefonico"]
[null,"PEC"]
[]
[]
[]
[null,"QUADRO 1.2 - DATI DEL RAPPRESENTATE LEGALE"]
[null,"Codice Fiscale"]
[null,"Cognome"]
[null,"Nome"]
[null,"Nato a "]
[null,"Prov."]
[null,"Il","gg/mm/aa"]
[null,"Recapito telefonico"]
[null,"PEC"]
[]
[]
[]
[null,"QUADRO 1.3 - DATI DEL TECNICO INCARICATO"]
[null,"Cognome"]
[null,"Nome"]
[null,"Recapito telefonico"]
[null,"PEC"]
[]
[]
[]
[null,"Luogo e data"]
[]
[]
[]
[null,null,"Firma del richiedente/legale rappresentante"]
[]
[]
[]
[]
[]
[]
[]
[null,null,"Firma e timbro del tecnico incaricato"]

{"sheet":"2 - PROGETTO DI REIMPIANTO","index":1,"n_rows":310,"n_cols":32,"rows_kept":310,"cut":false,"hidden":false,"merged":[[309,1,309,5],[9,15,308,15],[9,16,308,16],[9,17,308,17],[9,19,308,19],[7,28,7,29],[9,21,308,21],[9,22,308,22],[1,22,1,32],[6,18,6,27],[6,28,6,31],[8,28,8,29],[7,30,7,31],[7,26,7,27],[8,26,8,27],[9,23,308,23],[4,1,4,2],[9,20,308,20],[6,1,6,17],[2,11,2,12],[2,2,2,4],[2,5,2,7],[2,14,2,15],[4,3,4,4]]}
["COMUNI"]
[]
[null,null,"Cliccare sull'icona accanto \nper consultare il sito www.emergenzaxylella.it",null,null,null,null,null,null,null,"Cliccare sull'icona accanto per nascondere le righe vuote dalla tabella sottostante",null,null,null,"Cliccare su SCOPRI per rendere visibili le righe vuote, precedentemente nascoste dalla tabella sottostante "]
[]
[null,"CUAA / P.IVA:",null,{"$f":"IF('1 - ANAGRAFICA'!C10<>\"\",'1 - ANAGRAFICA'!C10,\"\")","v":""}]
[]
[null,"QUADRO 2 - CONSISTENZA OLIVICOLA AZIENDALE ED IMPORTI RICHIESTI",null,null,null,null,null,null,null,null,null,null,null,null,null,null,null,null,"QUADRO 2 - CONSISTENZA OLIVICOLA AZIENDALE ED IMPORTI RICHIESTI",null,null,null,null,null,null,null,null,null,"QUADRO 2 - CONSISTENZA OLIVICOLA AZIENDALE ED IMPORTI RICHIESTI"]
[null,"NR","COMUNE","FG","P.LLA","SUB","SUP.  OLIVICOLA\n(mq)","SUP. OLIVICOLA (Ha)","N° PIANTE DI OLIVO PER SINGOLA P.LLA","N° PIANTE DI OLIVO OGGETTO DI SVELLIMENTO","CALCOLO % DANNO","DDSA DI RICONOSCIMENTO DELLA ZONA INFETTA","PUNTEGGIO DI CUI AL PRINCIPIO 3 IN BASE ALLA DDSA DI RICONOSCIMENTO DELLA ZONA INFETTA","SUP. OLIVICOLA IN ZONA INFETTA\n(mq)"," PUNTEGGIO PONDERATO DI CUI AL PRINCIPIO 3","PUNTEGGIO DICHIARATO DI CUI AL PRINCIPIO 2","PUNTEGGIO DICHIARATO DI CUI AL PRINCIPIO 1","PUNTEGGIO TOTALE","SUP. DELLE P.LLE  OGGETTO DI SVELLIMENTO\n(mq)","CLASSE DI DENSITÁ DELL'IMPIANTO OLIVICOLO ESISTENTE\n(piante/Ha)                ","€/PIANTA PER CLASSE DI DENSITÁ IMPIANTO","IMPORTO\n (€ / Ha)","CONFERMA o RIDETERMINAZIONE IMPORTO SECONDO MIN E MAX\n(€ / Ha)","TOTALE SPESA RICHIESTA\n(€)","NASCONDERE!!!!","N° PIANTE DA REIMPIANTARE","NUOVA DENSITÀ DELL'IMPIANTO PER SINGOLA P.LLA\n(piante/Ha)",null,"PARTICELLA IRRIGUA ",null,"FONTE IRRIGUA "]
[null,null,null,null,null,null,null,"[G/10.000]",null,null,"[J/I]",null,null,"[G]","[(N/Ntot)*M]",null,null,"[O+P+Q]",null,"[10.000*(J/S)]",null,"[10.000*J*U/S]",null,"[W*S/10.000]",null,null,"[10.000*(I-J+Z)/G]",null,"[SI/NO]",null,"(inserire la tipologia di fonte irrigua)","(inserire il n° di autorizzazione, scadenza, n° utenza, ecc.)"]
[null,1,null,null,null,null,null,{"$f":"IF(G10=\"\",\"\",G10/10000)","v":""},null,null,{"$f":"IF(AND(J10>0,L10=\"Zona non infetta\"),\"ATTENZIONE: il presente Avviso pubblico non prevede interventi in Zona non infetta\",\"\")","v":""},null,{"$f":"IF(J10=0,\"-\",IF(AND(G10=\"\",L10<>\"\"),\"-\",IF(L10=\"DDSA n. 157 del 18/04/2014\",\"60\",IF(L10=\"DDSA n. 3 del 16/01/2015\",\"45\",IF(L10=\"DDSA n. 54 del 13/03/2015\",\"30\",IF(L10=\"DDSA n. 571 del 05/11/2015\",\"20\",IF(L10=\"DDSA n. 23 del 12/02/2016\",\"10\",IF(L10=\"DDSA n. 203 del 24/05/2016 e successive\",\"5\",IF(L10=\"Zona non infetta\",\"-\",IF(L10=\"\",\"-\"))))))))))","v":"-"},{"$f":"IF(AND(G10=\"\",OR(L10<>\"\",L10=\"Zona non infetta\")),\"-\",IF(AND(L10<>\"\",L10<>\"Zona non infetta\"),G10,\"-\"))","v":"-"},{"$f":"IF(OR(M10=\"-\",N10=\"-\"),\"-\",(N10/$N$310)*M10)","v":"-"},null,null,null,{"$f":"IF(OR(J10=\"\",J10=\"0\"),\"-\",IF(AND(J10<>0,L10<>\"Zona non infetta\"),G10,\"-\"))","v":"-"},null,null,null,null,null,{"$f":"IF(OR(L10=\"\",L10=\"Zona non infetta\"),1,0)","v":1},null,{"$f":"IF(S10=\"-\",\"-\",IF(OR(Z10=\"\",Z10=0),\"-\",10000*(I10-J10+Z10)/G10))","v":"-"},{"$f":"IF(AND(Z10<>\"\",Z10<J10),\"ATTENZIONE: il numero di piante da reimpiantare DEVE ESSERE ALMENO PARI a quello delle piante oggetto di svellimento\",IF(AND(OR(Z10=0,Z10=\"-\"),AA10=\"-\"),\"-\",IF(AND(AA10>0,AA10<=238),\"Dati sulla fonte irrigua NON OBBLIGATORI. Si prega di compilare, ugualmente, la cella succesiva indicando se la p.lla è irrigua o meno\",\"Dati sulla fonte irrigua OBBLIGATORI. Pertanto, compilare tutte le celle successive\")))","v":"-"},null,{"$f":"IF(AND(AA10=\"-\",AC10=\"\"),\"-\",IF(AND(AA10<>0,AC10=\"\"),\"-\",IF(AND(AA10<=238,AC10=\"SI\"),\"Compilare i dati relativi alla FONTE IRRIGUA\",IF(AND(AA10<=238,AC10=\"NO\"),\"-\",IF(AND(AA10>238,AC10=\"SI\"),\"OBBLIGATORIO compilare i dati relativi alla FONTE IRRIGUA\",IF(AND(AA10>238,AC10=\"NO\"),\"ATTENZIONE: per densità uguali o superiori a 238 piante/Ha, è OBBLIGATORIO disporre di una FONTE IRRIGUA\"))))))","v":"-"}]
[null,{"$f":"B10+1","v":2},null,null,null,null,null,{"$f":"IF(G11=\"\",\"\",G11/10000)","v":""},null,null,{"$f":"IF(AND(J11>0,L11=\"Zona non infetta\"),\"ATTENZIONE: il presente Avviso pubblico non prevede interventi in Zona non infetta\",\"\")","v":""},null,"-",{"$f":"IF(AND(G11=\"\",OR(L11<>\"\",L11=\"Zona non infetta\")),\"-\",IF(AND(L11<>\"\",L11<>\"Zona non infetta\"),G11,\"-\"))","v":"-"},"-",null,null,null,{"$f":"IF(OR(J11=\"\",J11=\"0\"),\"-\",IF(AND(J11<>0,L11<>\"Zona non infetta\"),G11,\"-\"))","v":"-"},null,null,null,null,null,{"$f":"IF(OR(L11=\"\",L11=\"Zona non infetta\"),1,0)","v":1},null,{"$f":"IF(S11=\"-\",\"-\",IF(OR(Z11=\"\",Z11=0),\"-\",10000*(I11-J11+Z11)/G11))","v":"-"},{"$f":"IF(AND(Z11<>\"\",Z11<J11),\"ATTENZIONE: il numero di piante da reimpiantare DEVE ESSERE ALMENO PARI a quello delle piante oggetto di svellimento\",IF(AND(OR(Z11=0,Z11=\"-\"),AA11=\"-\"),\"-\",IF(AND(AA11>0,AA11<=238),\"Dati sulla fonte irrigua NON OBBLIGATORI. Si prega di compilare, ugualmente, la cella succesiva indicando se la p.lla è irrigua o meno\",\"Dati sulla fonte irrigua OBBLIGATORI. Pertanto, compilare tutte le celle successive\")))","v":"-"},null,{"$f":"IF(AND(AA11=\"-\",AC11=\"\"),\"-\",IF(AND(AA11<>0,AC11=\"\"),\"-\",IF(AND(AA11<=238,AC11=\"SI\"),\"Compilare i dati relativi alla FONTE IRRIGUA\",IF(AND(AA11<=238,AC11=\"NO\"),\"-\",IF(AND(AA11>238,AC11=\"SI\"),\"OBBLIGATORIO compilare i dati relativi alla FONTE IRRIGUA\",IF(AND(AA11>238,AC11=\"NO\"),\"ATTENZIONE: per densità uguali o superiori a 238 piante/Ha, è OBBLIGATORIO disporre di una FONTE IRRIGUA\"))))))","v":"-"}]
[null,{"$f":"B11+1","v":3},null,null,null,null,null,"",null,null,{"$f":"IF(AND(J12>0,L12=\"Zona non infetta\"),\"ATTENZIONE: il presente Avviso pubblico non prevede interventi in Zona non infetta\",\"\")","v":""},null,"-","-","-",null,null,null,"-",null,null,null,null,null,1,null,{"$f":"IF(S12=\"-\",\"-\",IF(OR(Z12=\"\",Z12=0),\"-\",10000*(I12-J12+Z12)/G12))","v":"-"},"-",null,"-"]
[null,4,null,null,null,null,null,"",null,null,{"$f":"IF(AND(J13>0,L13=\"Zona non infetta\"),\"ATTENZIONE: il presente Avviso pubblico non prevede interventi in Zona non infetta\",\"\")","v":""},null,{"$f":"IF(J13=0,\"-\",IF(AND(G13=\"\",L13<>\"\"),\"-\",IF(L13=\"DDSA n. 157 del 18/04/2014\",\"60\",IF(L13=\"DDSA n. 3 del 16/01/2015\",\"45\",IF(L13=\"DDSA n. 54 del 13/03/2015\",\"30\",IF(L13=\"DDSA n. 571 del 05/11/2015\",\"20\",IF(L13=\"DDSA n. 23 del 12/02/2016\",\"10\",IF(L13=\"DDSA n. 203 del 24/05/2016 e successive\",\"5\",IF(L13=\"Zona non infetta\",\"-\",IF(L13=\"\",\"-\"))))))))))","v":"-"},"-",{"$f":"IF(OR(M13=\"-\",N13=\"-\"),\"-\",(N13/$N$310)*M13)","v":"-"},null,null,null,"-",null,null,null,null,null,1,null,"-","-",null,"-"]
[null,5,null,null,null,null,null,"",null,null,"",null,"-","-","-",null,null,null,"-",null,null,null,null,null,1,null,"-","-",null,"-"]
[null,6,null,null,null,null,null,"",null,null,"",null,"-","-","-",null,null,null,"-",null,null,null,null,null,1,null,"-","-",null,"-"]
[null,7,null,null,null,null,null,"",null,null,"",null,"-","-","-",null,null,null,"-",null,null,null,null,null,1,null,"-","-",null,"-"]
[null,8,null,null,null,null,null,"",null,null,"",null,"-","-","-",null,null,null,"-",null,null,null,null,null,1,null,"-","-",null,"-"]
[null,9,null,null,null,null,null,"",null,null,"",null,"-","-","-",null,null,null,"-",null,null,null,null,null,1,null,"-","-",null,"-"]
[null,10,null,null,null,null,null,"",null,null,"",null,"-","-","-",null,null,null,"-",null,null,null,null,null,1,null,"-","-",null,"-"]
[null,11,null,null,null,null,null,"",null,null,"",null,"-","-","-",null,null,null,"-",null,null,null,null,null,1,null,"-","-",null,"-"]
[null,12,null,null,null,null,null,"",null,null,"",null,"-","-","-",null,null,null,"-",null,null,null,null,null,1,null,"-","-",null,"-"]
[null,13,null,null,null,null,null,"",null,null,"",null,"-","-","-",null,null,null,"-",null,null,null,null,null,1,null,"-","-",null,"-"]
[null,14,null,null,null,null,null,"",null,null,"",null,"-","-","-",null,null,null,"-",null,null,null,null,null,1,null,"-","-",null,"-"]
[null,15,null,null,null,null,null,"",null,null,"",null,"-","-","-",null,null,null,"-",null,null,null,null,null,1,null,"-","-",null,"-"]
[null,16,null,null,null,null,null,"",null,null,"",null,"-","-","-",null,null,null,"-",null,null,null,null,null,1,null,"-","-",null,"-"]
[null,17,null,null,null,null,null,"",null,null,"",null,"-","-","-",null,null,null,"-",null,null,null,null,null,1,null,"-","-",null,"-"]
[null,18,null,null,null,null,null,"",null,null,"",null,"-","-","-",null,null,null,"-",null,null,null,null,null,1,null,"-","-",null,"-"]
[null,19,null,null,null,null,null,"",null,null,"",null,"-","-","-",null,null,null,"-",null,null,null,null,null,1,null,"-","-",null,"-"]
[null,20,null,null,null,null,null,"",null,null,"",null,"-","-","-",null,null,null,"-",null,null,null,null,null,1,null,"-","-",null,"-"]
[null,21,null,null,null,null,null,"",null,null,"",null,"-","-","-",null,null,null,"-",null,null,null,null,null,1,null,"-","-",null,"-"]
[null,22,null,null,null,null,null,"",null,null,"",null,"-","-","-",null,null,null,"-",null,null,null,null,null,1,null,"-","-",null,"-"]
[null,23,null,null,null,null,null,"",null,null,"",null,"-","-","-",null,null,null,"-",null,null,null,null,null,1,null,"-","-",null,"-"]
[null,24,null,null,null,null,null,"",null,null,"",null,"-","-","-",null,null,null,"-",null,null,null,null,null,1,null,"-","-",null,"-"]
[null,25,null,null,null,null,null,"",null,null,"",null,"-","-","-",null,null,null,"-",null,null,null,null,null,1,null,"-","-",null,"-"]
[null,26,null,null,null,null,null,"",null,null,"",null,"-","-","-",null,null,null,"-",null,null,null,null,null,1,null,"-","-",null,"-"]
[null,27,null,null,null,null,null,"",null,null,"",null,"-","-","-",null,null,null,"-",null,null,null,null,null,1,null,"-","-",null,"-"]
[null,28,null,null,null,null,null,"",null,null,"",null,"-","-","-",null,null,null,"-",null,null,null,null,null,1,null,"-","-",null,"-"]
[null,29,null,null,null,null,null,"",null,null,"",null,"-","-","-",null,null,null,"-",null,null,null,null,null,1,null,"-","-",null,"-"]
[null,30,null,null,null,null,null,"",null,null,"",null,"-","-","-",null,null,null,"-",null,null,null,null,null,1,null,"-","-",null,"-"]
[null,31,null,null,null,null,null,"",null,null,"",null,"-","-","-",null,null,null,"-",null,null,null,null,null,1,null,"-","-",null,"-"]
[null,32,null,null,null,null,null,"",null,null,"",null,"-","-","-",null,null,null,"-",null,null,null,null,null,1,null,"-","-",null,"-"]
[null,33,null,null,null,null,null,"",null,null,"",null,"-","-","-",null,null,null,"-",null,null,null,null,null,1,null,"-","-",null,"-"]
[null,34,null,null,null,null,null,"",null,null,"",null,"-","-","-",null,null,null,"-",null,null,null,null,null,1,null,"-","-",null,"-"]
[null,35,null,null,null,null,null,"",null,null,"",null,"-","-","-",null,null,null,"-",null,null,null,null,null,1,null,"-","-",null,"-"]
[null,36,null,null,null,null,null,"",null,null,"",null,"-","-","-",null,null,null,"-",null,null,null,null,null,1,null,"-","-",null,"-"]
[null,37,null,null,null,null,null,"",null,null,"",null,"-","-","-",null,null,null,"-",null,null,null,null,null,1,null,"-","-",null,"-"]
[null,38,null,null,null,null,null,"",null,null,"",null,"-","-","-",null,null,null,"-",null,null,null,null,null,1,null,"-","-",null,"-"]
[null,39,null,null,null,null,null,"",null,null,"",null,"-","-","-",null,null,null,"-",null,null,null,null,null,1,null,"-","-",null,"-"]
[null,40,null,null,null,null,null,"",null,null,"",null,"-","-","-",null,null,null,"-",null,null,null,null,null,1,null,"-","-",null,"-"]
[null,41,null,null,null,null,null,"",null,null,"",null,"-","-","-",null,null,null,"-",null,null,null,null,null,1,null,"-","-",null,"-"]
[null,42,null,null,null,null,null,"",null,null,"",null,"-","-","-",null,null,null,"-",null,null,null,null,null,1,null,"-","-",null,"-"]
[null,43,null,null,null,null,null,"",null,null,"",null,"-","-","-",null,null,null,"-",null,null,null,null,null,1,null,"-","-",null,"-"]
[null,44,null,null,null,null,null,"",null,null,"",null,"-","-","-",null,null,null,"-",null,null,null,null,null,1,null,"-","-",null,"-"]
[null,45,null,null,null,null,null,"",null,null,"",null,"-","-","-",null,null,null,"-",null,null,null,null,null,1,null,"-","-",null,"-"]
[null,46,null,null,null,null,null,"",null,null,"",null,"-","-","-",null,null,null,"-",null,null,null,null,null,1,null,"-","-",null,"-"]
[null,47,null,null,null,null,null,"",null,null,"",null,"-","-","-",null,null,null,"-",null,null,null,null,null,1,null,"-","-",null,"-"]
[null,48,null,null,null,null,null,"",null,null,"",null,"-","-","-",null,null,null,"-",null,null,null,null,null,1,null,"-","-",null,"-"]
[null,49,null,null,null,null,null,"",null,null,"",null,"-","-","-",null,null,null,"-",null,null,null,null,null,1,null,"-","-",null,"-"]
[null,50,null,null,null,null,null,"",null,null,"",null,"-","-","-",null,null,null,"-",null,null,null,null,null,1,null,"-","-",null,"-"]
[null,51,null,null,null,null,null,"",null,null,"",null,"-","-","-",null,null,null,"-",null,null,null,null,null,1,null,"-","-",null,"-"]
[null,52,null,null,null,null,null,"",null,null,"",null,"-","-","-",null,null,null,"-",null,null,null,null,null,1,null,"-","-",null,"-"]
[null,53,null,null,null,null,null,"",null,null,"",null,"-","-","-",null,null,null,"-",null,null,null,null,null,1,null,"-","-",null,"-"]
[null,54,null,null,null,null,null,"",null,null,"",null,"-","-","-",null,null,null,"-",null,null,null,null,null,1,null,"-","-",null,"-"]
[null,55,null,null,null,null,null,"",null,null,"",null,"-","-","-",null,null,null,"-",null,null,null,null,null,1,null,"-","-",null,"-"]
[null,56,null,null,null,null,null,"",null,null,"",null,"-","-","-",null,null,null,"-",null,null,null,null,null,1,null,"-","-",null,"-"]
[null,57,null,null,null,null,null,"",null,null,"",null,"-","-","-",null,null,null,"-",null,null,null,null,null,1,null,"-","-",null,"-"]
[null,58,null,null,null,null,null,"",null,null,"",null,"-","-","-",null,null,null,"-",null,null,null,null,null,1,null,"-","-",null,"-"]
[null,59,null,null,null,null,null,"",null,null,"",null,"-","-","-",null,null,null,"-",null,null,null,null,null,1,null,"-","-",null,"-"]
[null,60,null,null,null,null,null,"",null,null,"",null,"-","-","-",null,null,null,"-",null,null,null,null,null,1,null,"-","-",null,"-"]
[null,61,null,null,null,null,null,"",null,null,"",null,"-","-","-",null,null,null,"-",null,null,null,null,null,1,null,"-","-",null,"-"]
[null,62,null,null,null,null,null,"",null,null,"",null,"-","-","-",null,null,null,"-",null,null,null,null,null,1,null,"-","-",null,"-"]
[null,63,null,null,null,null,null,"",null,null,"",null,"-","-","-",null,null,null,"-",null,null,null,null,null,1,null,"-","-",null,"-"]
[null,64,null,null,null,null,null,"",null,null,"",null,"-","-","-",null,null,null,"-",null,null,null,null,null,1,null,"-","-",null,"-"]
[null,65,null,null,null,null,null,"",null,null,"",null,{"$f":"IF(J74=0,\"-\",IF(AND(G74=\"\",L74<>\"\"),\"-\",IF(L74=\"DDSA n. 157 del 18/04/2014\",\"60\",IF(L74=\"DDSA n. 3 del 16/01/2015\",\"45\",IF(L74=\"DDSA n. 54 del 13/03/2015\",\"30\",IF(L74=\"DDSA n. 571 del 05/11/2015\",\"20\",IF(L74=\"DDSA n. 23 del 12/02/2016\",\"10\",IF(L74=\"DDSA n. 203 del 24/05/2016 e successive\",\"5\",IF(L74=\"Zona non infetta\",\"-\",IF(L74=\"\",\"-\"))))))))))","v":"-"},"-",{"$f":"IF(OR(M74=\"-\",N74=\"-\"),\"-\",(N74/$N$310)*M74)","v":"-"},null,null,null,"-",null,null,null,null,null,1,null,"-","-",null,"-"]
[null,66,null,null,null,null,null,"",null,null,"",null,"-",{"$f":"IF(AND(G75=\"\",OR(L75<>\"\",L75=\"Zona non infetta\")),\"-\",IF(AND(L75<>\"\",L75<>\"Zona non infetta\"),G75,\"-\"))","v":"-"},"-",null,null,null,{"$f":"IF(OR(J75=\"\",J75=\"0\"),\"-\",IF(AND(J75<>0,L75<>\"Zona non infetta\"),G75,\"-\"))","v":"-"},null,null,null,null,null,{"$f":"IF(OR(L75=\"\",L75=\"Zona non infetta\"),1,0)","v":1},null,"-",{"$f":"IF(AND(Z75<>\"\",Z75<J75),\"ATTENZIONE: il numero di piante da reimpiantare DEVE ESSERE ALMENO PARI a quello delle piante oggetto di svellimento\",IF(AND(OR(Z75=0,Z75=\"-\"),AA75=\"-\"),\"-\",IF(AND(AA75>0,AA75<=238),\"Dati sulla fonte irrigua NON OBBLIGATORI. Si prega di compilare, ugualmente, la cella succesiva indicando se la p.lla è irrigua o meno\",\"Dati sulla fonte irrigua OBBLIGATORI. Pertanto, compilare tutte le celle successive\")))","v":"-"},null,{"$f":"IF(AND(AA75=\"-\",AC75=\"\"),\"-\",IF(AND(AA75<>0,AC75=\"\"),\"-\",IF(AND(AA75<=238,AC75=\"SI\"),\"Compilare i dati relativi alla FONTE IRRIGUA\",IF(AND(AA75<=238,AC75=\"NO\"),\"-\",IF(AND(AA75>238,AC75=\"SI\"),\"OBBLIGATORIO compilare i dati relativi alla FONTE IRRIGUA\",IF(AND(AA75>238,AC75=\"NO\"),\"ATTENZIONE: per densità uguali o superiori a 238 piante/Ha, è OBBLIGATORIO disporre di una FONTE IRRIGUA\"))))))","v":"-"}]
[null,{"$f":"B75+1","v":67},null,null,null,null,null,"",null,null,"",null,"-","-","-",null,null,null,"-",null,null,null,null,null,1,null,{"$f":"IF(S76=\"-\",\"-\",IF(OR(Z76=\"\",Z76=0),\"-\",10000*(I76-J76+Z76)/G76))","v":"-"},"-",null,"-"]
[null,68,null,null,null,null,null,"",null,null,"",null,"-","-","-",null,null,null,"-",null,null,null,null,null,1,null,"-","-",null,"-"]
[null,69,null,null,null,null,null,"",null,null,"",null,"-","-","-",null,null,null,"-",null,null,null,null,null,1,null,"-","-",null,"-"]
[null,70,null,null,null,null,null,"",null,null,"",null,"-","-","-",null,null,null,"-",null,null,null,null,null,1,null,"-","-",null,"-"]
[null,71,null,null,null,null,null,"",null,null,"",null,"-","-","-",null,null,null,"-",null,null,null,null,null,1,null,"-","-",null,"-"]
[null,72,null,null,null,null,null,"",null,null,"",null,"-","-","-",null,null,null,"-",null,null,null,null,null,1,null,"-","-",null,"-"]
[null,73,null,null,null,null,null,"",null,null,"",null,"-","-","-",null,null,null,"-",null,null,null,null,null,1,null,"-","-",null,"-"]
[null,74,null,null,null,null,null,"",null,null,"",null,"-","-","-",null,null,null,"-",null,null,null,null,null,1,null,"-","-",null,"-"]
[null,75,null,null,null,null,null,"",null,null,"",null,"-","-","-",null,null,null,"-",null,null,null,null,null,1,null,"-","-",null,"-"]
[null,76,null,null,null,null,null,"",null,null,"",null,"-","-","-",null,null,null,"-",null,null,null,null,null,1,null,"-","-",null,"-"]
[null,77,null,null,null,null,null,"",null,null,"",null,"-","-","-",null,null,null,"-",null,null,null,null,null,1,null,"-","-",null,"-"]
[null,78,null,null,null,null,null,"",null,null,"",null,"-","-","-",null,null,null,"-",null,null,null,null,null,1,null,"-","-",null,"-"]
[null,79,null,null,null,null,null,"",null,null,"",null,"-","-","-",null,null,null,"-",null,null,null,null,null,1,null,"-","-",null,"-"]
[null,80,null,null,null,null,null,"",null,null,"",null,"-","-","-",null,null,null,"-",null,null,null,null,null,1,null,"-","-",null,"-"]
[null,81,null,null,null,null,null,"",null,null,"",null,"-","-","-",null,null,null,"-",null,null,null,null,null,1,null,"-","-",null,"-"]
[null,82,null,null,null,null,null,"",null,null,"",null,"-","-","-",null,null,null,"-",null,null,null,null,null,1,null,"-","-",null,"-"]
[null,83,null,null,null,null,null,"",null,null,"",null,"-","-","-",null,null,null,"-",null,null,null,null,null,1,null,"-","-",null,"-"]
[null,84,null,null,null,null,null,"",null,null,"",null,"-","-","-",null,null,null,"-",null,null,null,null,null,1,null,"-","-",null,"-"]
[null,85,null,null,null,null,null,"",null,null,"",null,"-","-","-",null,null,null,"-",null,null,null,null,null,1,null,"-","-",null,"-"]
[null,86,null,null,null,null,null,"",null,null,"",null,"-","-","-",null,null,null,"-",null,null,null,null,null,1,null,"-","-",null,"-"]
[null,87,null,null,null,null,null,"",null,null,"",null,"-","-","-",null,null,null,"-",null,null,null,null,null,1,null,"-","-",null,"-"]
[null,88,null,null,null,null,null,"",null,null,"",null,"-","-","-",null,null,null,"-",null,null,null,null,null,1,null,"-","-",null,"-"]
[null,89,null,null,null,null,null,"",null,null,"",null,"-","-","-",null,null,null,"-",null,null,null,null,null,1,null,"-","-",null,"-"]
[null,90,null,null,null,null,null,"",null,null,"",null,"-","-","-",null,null,null,"-",null,null,null,null,null,1,null,"-","-",null,"-"]
[null,91,null,null,null,null,null,"",null,null,"",null,"-","-","-",null,null,null,"-",null,null,null,null,null,1,null,"-","-",null,"-"]
[null,92,null,null,null,null,null,"",null,null,"",null,"-","-","-",null,null,null,"-",null,null,null,null,null,1,null,"-","-",null,"-"]
[null,93,null,null,null,null,null,"",null,null,"",null,"-","-","-",null,null,null,"-",null,null,null,null,null,1,null,"-","-",null,"-"]
[null,94,null,null,null,null,null,"",null,null,"",null,"-","-","-",null,null,null,"-",null,null,null,null,null,1,null,"-","-",null,"-"]
[null,95,null,null,null,null,null,"",null,null,"",null,"-","-","-",null,null,null,"-",null,null,null,null,null,1,null,"-","-",null,"-"]
[null,96,null,null,null,null,null,"",null,null,"",null,"-","-","-",null,null,null,"-",null,null,null,null,null,1,null,"-","-",null,"-"]
[null,97,null,null,null,null,null,"",null,null,"",null,"-","-","-",null,null,null,"-",null,null,null,null,null,1,null,"-","-",null,"-"]
[null,98,null,null,null,null,null,"",null,null,"",null,"-","-","-",null,null,null,"-",null,null,null,null,null,1,null,"-","-",null,"-"]
[null,99,null,null,null,null,null,"",null,null,"",null,"-","-","-",null,null,null,"-",null,null,null,null,null,1,null,"-","-",null,"-"]
[null,100,null,null,null,null,null,"",null,null,"",null,"-","-","-",null,null,null,"-",null,null,null,null,null,1,null,"-","-",null,"-"]
[null,101,null,null,null,null,null,"",null,null,"",null,"-","-","-",null,null,null,"-",null,null,null,null,null,1,null,"-","-",null,"-"]
[null,102,null,null,null,null,null,"",null,null,"",null,"-","-","-",null,null,null,"-",null,null,null,null,null,1,null,"-","-",null,"-"]
[null,103,null,null,null,null,null,"",null,null,"",null,"-","-","-",null,null,null,"-",null,null,null,null,null,1,null,"-","-",null,"-"]
[null,104,null,null,null,null,null,"",null,null,"",null,"-","-","-",null,null,null,"-",null,null,null,null,null,1,null,"-","-",null,"-"]
[null,105,null,null,null,null,null,"",null,null,"",null,"-","-","-",null,null,null,"-",null,null,null,null,null,1,null,"-","-",null,"-"]
[null,106,null,null,null,null,null,"",null,null,"",null,"-","-","-",null,null,null,"-",null,null,null,null,null,1,null,"-","-",null,"-"]
[null,107,null,null,null,null,null,"",null,null,"",null,"-","-","-",null,null,null,"-",null,null,null,null,null,1,null,"-","-",null,"-"]
[null,108,null,null,null,null,null,"",null,null,"",null,"-","-","-",null,null,null,"-",null,null,null,null,null,1,null,"-","-",null,"-"]
[null,109,null,null,null,null,null,"",null,null,"",null,"-","-","-",null,null,null,"-",null,null,null,null,null,1,null,"-","-",null,"-"]
[null,110,null,null,null,null,null,"",null,null,"",null,"-","-","-",null,null,null,"-",null,null,null,null,null,1,null,"-","-",null,"-"]
[null,111,null,null,null,null,null,"",null,null,"",null,"-","-","-",null,null,null,"-",null,null,null,null,null,1,null,"-","-",null,"-"]
[null,112,null,null,null,null,null,"",null,null,"",null,"-","-","-",null,null,null,"-",null,null,null,null,null,1,null,"-","-",null,"-"]
[null,113,null,null,null,null,null,"",null,null,"",null,"-","-","-",null,null,null,"-",null,null,null,null,null,1,null,"-","-",null,"-"]
[null,114,null,null,null,null,null,"",null,null,"",null,"-","-","-",null,null,null,"-",null,null,null,null,null,1,null,"-","-",null,"-"]
[null,115,null,null,null,null,null,"",null,null,"",null,"-","-","-",null,null,null,"-",null,null,null,null,null,1,null,"-","-",null,"-"]
[null,116,null,null,null,null,null,"",null,null,"",null,"-","-","-",null,null,null,"-",null,null,null,null,null,1,null,"-","-",null,"-"]
[null,117,null,null,null,null,null,"",null,null,"",null,"-","-","-",null,null,null,"-",null,null,null,null,null,1,null,"-","-",null,"-"]
[null,118,null,null,null,null,null,"",null,null,"",null,"-","-","-",null,null,null,"-",null,null,null,null,null,1,null,"-","-",null,"-"]
[null,119,null,null,null,null,null,"",null,null,"",null,"-","-","-",null,null,null,"-",null,null,null,null,null,1,null,"-","-",null,"-"]
[null,120,null,null,null,null,null,"",null,null,"",null,"-","-","-",null,null,null,"-",null,null,null,null,null,1,null,"-","-",null,"-"]
[null,121,null,null,null,null,null,"",null,null,"",null,"-","-","-",null,null,null,"-",null,null,null,null,null,1,null,"-","-",null,"-"]
[null,122,null,null,null,null,null,"",null,null,"",null,"-","-","-",null,null,null,"-",null,null,null,null,null,1,null,"-","-",null,"-"]
[null,123,null,null,null,null,null,"",null,null,"",null,"-","-","-",null,null,null,"-",null,null,null,null,null,1,null,"-","-",null,"-"]
[null,124,null,null,null,null,null,"",null,null,"",null,"-","-","-",null,null,null,"-",null,null,null,null,null,1,null,"-","-",null,"-"]
[null,125,null,null,null,null,null,"",null,null,"",null,"-","-","-",null,null,null,"-",null,null,null,null,null,1,null,"-","-",null,"-"]
[null,126,null,null,null,null,null,"",null,null,"",null,"-","-","-",null,null,null,"-",null,null,null,null,null,1,null,"-","-",null,"-"]
[null,127,null,null,null,null,null,"",null,null,"",null,"-","-","-",null,null,null,"-",null,null,null,null,null,1,null,"-","-",null,"-"]
[null,128,null,null,null,null,null,"",null,null,"",null,"-","-","-",null,null,null,"-",null,null,null,null,null,1,null,"-","-",null,"-"]
[null,129,null,null,null,null,null,"",null,null,"",null,{"$f":"IF(J138=0,\"-\",IF(AND(G138=\"\",L138<>\"\"),\"-\",IF(L138=\"DDSA n. 157 del 18/04/2014\",\"60\",IF(L138=\"DDSA n. 3 del 16/01/2015\",\"45\",IF(L138=\"DDSA n. 54 del 13/03/2015\",\"30\",IF(L138=\"DDSA n. 571 del 05/11/2015\",\"20\",IF(L138=\"DDSA n. 23 del 12/02/2016\",\"10\",IF(L138=\"DDSA n. 203 del 24/05/2016 e successive\",\"5\",IF(L138=\"Zona non infetta\",\"-\",IF(L138=\"\",\"-\"))))))))))","v":"-"},"-",{"$f":"IF(OR(M138=\"-\",N138=\"-\"),\"-\",(N138/$N$310)*M138)","v":"-"},null,null,null,"-",null,null,null,null,null,1,null,"-","-",null,"-"]
[null,130,null,null,null,null,null,"",null,null,"",null,"-",{"$f":"IF(AND(G139=\"\",OR(L139<>\"\",L139=\"Zona non infetta\")),\"-\",IF(AND(L139<>\"\",L139<>\"Zona non infetta\"),G139,\"-\"))","v":"-"},"-",null,null,null,{"$f":"IF(OR(J139=\"\",J139=\"0\"),\"-\",IF(AND(J139<>0,L139<>\"Zona non infetta\"),G139,\"-\"))","v":"-"},null,null,null,null,null,{"$f":"IF(OR(L139=\"\",L139=\"Zona non infetta\"),1,0)","v":1},null,"-",{"$f":"IF(AND(Z139<>\"\",Z139<J139),\"ATTENZIONE: il numero di piante da reimpiantare DEVE ESSERE ALMENO PARI a quello delle piante oggetto di svellimento\",IF(AND(OR(Z139=0,Z139=\"-\"),AA139=\"-\"),\"-\",IF(AND(AA139>0,AA139<=238),\"Dati sulla fonte irrigua NON OBBLIGATORI. Si prega di compilare, ugualmente, la cella succesiva indicando se la p.lla è irrigua o meno\",\"Dati sulla fonte irrigua OBBLIGATORI. Pertanto, compilare tutte le celle successive\")))","v":"-"},null,{"$f":"IF(AND(AA139=\"-\",AC139=\"\"),\"-\",IF(AND(AA139<>0,AC139=\"\"),\"-\",IF(AND(AA139<=238,AC139=\"SI\"),\"Compilare i dati relativi alla FONTE IRRIGUA\",IF(AND(AA139<=238,AC139=\"NO\"),\"-\",IF(AND(AA139>238,AC139=\"SI\"),\"OBBLIGATORIO compilare i dati relativi alla FONTE IRRIGUA\",IF(AND(AA139>238,AC139=\"NO\"),\"ATTENZIONE: per densità uguali o superiori a 238 piante/Ha, è OBBLIGATORIO disporre di una FONTE IRRIGUA\"))))))","v":"-"}]
[null,{"$f":"B139+1","v":131},null,null,null,null,null,"",null,null,"",null,"-","-","-",null,null,null,"-",null,null,null,null,null,1,null,{"$f":"IF(S140=\"-\",\"-\",IF(OR(Z140=\"\",Z140=0),\"-\",10000*(I140-J140+Z140)/G140))","v":"-"},"-",null,"-"]
[null,132,null,null,null,null,null,"",null,null,"",null,"-","-","-",null,null,null,"-",null,null,null,null,null,1,null,"-","-",null,"-"]
[null,133,null,null,null,null,null,"",null,null,"",null,"-","-","-",null,null,null,"-",null,null,null,null,null,1,null,"-","-",null,"-"]
[null,134,null,null,null,null,null,"",null,null,"",null,"-","-","-",null,null,null,"-",null,null,null,null,null,1,null,"-","-",null,"-"]
[null,135,null,null,null,null,null,"",null,null,"",null,"-","-","-",null,null,null,"-",null,null,null,null,null,1,null,"-","-",null,"-"]
[null,136,null,null,null,null,null,"",null,null,"",null,"-","-","-",null,null,null,"-",null,null,null,null,null,1,null,"-","-",null,"-"]
[null,137,null,null,null,null,null,"",null,null,"",null,"-","-","-",null,null,null,"-",null,null,null,null,null,1,null,"-","-",null,"-"]
[null,138,null,null,null,null,null,"",null,null,"",null,"-","-","-",null,null,null,"-",null,null,null,null,null,1,null,"-","-",null,"-"]
[null,139,null,null,null,null,null,"",null,null,"",null,"-","-","-",null,null,null,"-",null,null,null,null,null,1,null,"-","-",null,"-"]
[null,140,null,null,null,null,null,"",null,null,"",null,"-","-","-",null,null,null,"-",null,null,null,null,null,1,null,"-","-",null,"-"]
[null,141,null,null,null,null,null,"",null,null,"",null,"-","-","-",null,null,null,"-",null,null,null,null,null,1,null,"-","-",null,"-"]
[null,142,null,null,null,null,null,"",null,null,"",null,"-","-","-",null,null,null,"-",null,null,null,null,null,1,null,"-","-",null,"-"]
[null,143,null,null,null,null,null,"",null,null,"",null,"-","-","-",null,null,null,"-",null,null,null,null,null,1,null,"-","-",null,"-"]
[null,144,null,null,null,null,null,"",null,null,"",null,"-","-","-",null,null,null,"-",null,null,null,null,null,1,null,"-","-",null,"-"]
[null,145,null,null,null,null,null,"",null,null,"",null,"-","-","-",null,null,null,"-",null,null,null,null,null,1,null,"-","-",null,"-"]
[null,146,null,null,null,null,null,"",null,null,"",null,"-","-","-",null,null,null,"-",null,null,null,null,null,1,null,"-","-",null,"-"]
[null,147,null,null,null,null,null,"",null,null,"",null,"-","-","-",null,null,null,"-",null,null,null,null,null,1,null,"-","-",null,"-"]
[null,148,null,null,null,null,null,"",null,null,"",null,"-","-","-",null,null,null,"-",null,null,null,null,null,1,null,"-","-",null,"-"]
[null,149,null,null,null,null,null,"",null,null,"",null,"-","-","-",null,null,null,"-",null,null,null,null,null,1,null,"-","-",null,"-"]
[null,150,null,null,null,null,null,"",null,null,"",null,"-","-","-",null,null,null,"-",null,null,null,null,null,1,null,"-","-",null,"-"]
[null,151,null,null,null,null,null,"",null,null,"",null,"-","-","-",null,null,null,"-",null,null,null,null,null,1,null,"-","-",null,"-"]
[null,152,null,null,null,null,null,"",null,null,"",null,"-","-","-",null,null,null,"-",null,null,null,null,null,1,null,"-","-",null,"-"]
[null,153,null,null,null,null,null,"",null,null,"",null,"-","-","-",null,null,null,"-",null,null,null,null,null,1,null,"-","-",null,"-"]
[null,154,null,null,null,null,null,"",null,null,"",null,"-","-","-",null,null,null,"-",null,null,null,null,null,1,null,"-","-",null,"-"]
[null,155,null,null,null,null,null,"",null,null,"",null,"-","-","-",null,null,null,"-",null,null,null,null,null,1,null,"-","-",null,"-"]
[null,156,null,null,null,null,null,"",null,null,"",null,"-","-","-",null,null,null,"-",null,null,null,null,null,1,null,"-","-",null,"-"]
[null,157,null,null,null,null,null,"",null,null,"",null,"-","-","-",null,null,null,"-",null,null,null,null,null,1,null,"-","-",null,"-"]
[null,158,null,null,null,null,null,"",null,null,"",null,"-","-","-",null,null,null,"-",null,null,null,null,null,1,null,"-","-",null,"-"]
[null,159,null,null,null,null,null,"",null,null,"",null,"-","-","-",null,null,null,"-",null,null,null,null,null,1,null,"-","-",null,"-"]
[null,160,null,null,null,null,null,"",null,null,"",null,"-","-","-",null,null,null,"-",null,null,null,null,null,1,null,"-","-",null,"-"]
[null,161,null,null,null,null,null,"",null,null,"",null,"-","-","-",null,null,null,"-",null,null,null,null,null,1,null,"-","-",null,"-"]
[null,162,null,null,null,null,null,"",null,null,"",null,"-","-","-",null,null,null,"-",null,null,null,null,null,1,null,"-","-",null,"-"]
[null,163,null,null,null,null,null,"",null,null,"",null,"-","-","-",null,null,null,"-",null,null,null,null,null,1,null,"-","-",null,"-"]
[null,164,null,null,null,null,null,"",null,null,"",null,"-","-","-",null,null,null,"-",null,null,null,null,null,1,null,"-","-",null,"-"]
[null,165,null,null,null,null,null,"",null,null,"",null,"-","-","-",null,null,null,"-",null,null,null,null,null,1,null,"-","-",null,"-"]
[null,166,null,null,null,null,null,"",null,null,"",null,"-","-","-",null,null,null,"-",null,null,null,null,null,1,null,"-","-",null,"-"]
[null,167,null,null,null,null,null,"",null,null,"",null,"-","-","-",null,null,null,"-",null,null,null,null,null,1,null,"-","-",null,"-"]
[null,168,null,null,null,null,null,"",null,null,"",null,"-","-","-",null,null,null,"-",null,null,null,null,null,1,null,"-","-",null,"-"]
[null,169,null,null,null,null,null,"",null,null,"",null,"-","-","-",null,null,null,"-",null,null,null,null,null,1,null,"-","-",null,"-"]
[null,170,null,null,null,null,null,"",null,null,"",null,"-","-","-",null,null,null,"-",null,null,null,null,null,1,null,"-","-",null,"-"]
[null,171,null,null,null,null,null,"",null,null,"",null,"-","-","-",null,null,null,"-",null,null,null,null,null,1,null,"-","-",null,"-"]
[null,172,null,null,null,null,null,"",null,null,"",null,"-","-","-",null,null,null,"-",null,null,null,null,null,1,null,"-","-",null,"-"]
[null,173,null,null,null,null,null,"",null,null,"",null,"-","-","-",null,null,null,"-",null,null,null,null,null,1,null,"-","-",null,"-"]
[null,174,null,null,null,null,null,"",null,null,"",null,"-","-","-",null,null,null,"-",null,null,null,null,null,1,null,"-","-",null,"-"]
[null,175,null,null,null,null,null,"",null,null,"",null,"-","-","-",null,null,null,"-",null,null,null,null,null,1,null,"-","-",null,"-"]
[null,176,null,null,null,null,null,"",null,null,"",null,"-","-","-",null,null,null,"-",null,null,null,null,null,1,null,"-","-",null,"-"]
[null,177,null,null,null,null,null,"",null,null,"",null,"-","-","-",null,null,null,"-",null,null,null,null,null,1,null,"-","-",null,"-"]
[null,178,null,null,null,null,null,"",null,null,"",null,"-","-","-",null,null,null,"-",null,null,null,null,null,1,null,"-","-",null,"-"]
[null,179,null,null,null,null,null,"",null,null,"",null,"-","-","-",null,null,null,"-",null,null,null,null,null,1,null,"-","-",null,"-"]
[null,180,null,null,null,null,null,"",null,null,"",null,"-","-","-",null,null,null,"-",null,null,null,null,null,1,null,"-","-",null,"-"]
[null,181,null,null,null,null,null,"",null,null,"",null,"-","-","-",null,null,null,"-",null,null,null,null,null,1,null,"-","-",null,"-"]
[null,182,null,null,null,null,null,"",null,null,"",null,"-","-","-",null,null,null,"-",null,null,null,null,null,1,null,"-","-",null,"-"]
[null,183,null,null,null,null,null,"",null,null,"",null,"-","-","-",null,null,null,"-",null,null,null,null,null,1,null,"-","-",null,"-"]
[null,184,null,null,null,null,null,"",null,null,"",null,"-","-","-",null,null,null,"-",null,null,null,null,null,1,null,"-","-",null,"-"]
[null,185,null,null,null,null,null,"",null,null,"",null,"-","-","-",null,null,null,"-",null,null,null,null,null,1,null,"-","-",null,"-"]
[null,186,null,null,null,null,null,"",null,null,"",null,"-","-","-",null,null,null,"-",null,null,null,null,null,1,null,"-","-",null,"-"]
[null,187,null,null,null,null,null,"",null,null,"",null,"-","-","-",null,null,null,"-",null,null,null,null,null,1,null,"-","-",null,"-"]
[null,188,null,null,null,null,null,"",null,null,"",null,"-","-","-",null,null,null,"-",null,null,null,null,null,1,null,"-","-",null,"-"]
[null,189,null,null,null,null,null,"",null,null,"",null,"-","-","-",null,null,null,"-",null,null,null,null,null,1,null,"-","-",null,"-"]
[null,190,null,null,null,null,null,"",null,null,"",null,"-","-","-",null,null,null,"-",null,null,null,null,null,1,null,"-","-",null,"-"]
[null,191,null,null,null,null,null,"",null,null,"",null,"-","-","-",null,null,null,"-",null,null,null,null,null,1,null,"-","-",null,"-"]
[null,192,null,null,null,null,null,"",null,null,"",null,"-","-","-",null,null,null,"-",null,null,null,null,null,1,null,"-","-",null,"-"]
[null,193,null,null,null,null,null,"",null,null,"",null,{"$f":"IF(J202=0,\"-\",IF(AND(G202=\"\",L202<>\"\"),\"-\",IF(L202=\"DDSA n. 157 del 18/04/2014\",\"60\",IF(L202=\"DDSA n. 3 del 16/01/2015\",\"45\",IF(L202=\"DDSA n. 54 del 13/03/2015\",\"30\",IF(L202=\"DDSA n. 571 del 05/11/2015\",\"20\",IF(L202=\"DDSA n. 23 del 12/02/2016\",\"10\",IF(L202=\"DDSA n. 203 del 24/05/2016 e successive\",\"5\",IF(L202=\"Zona non infetta\",\"-\",IF(L202=\"\",\"-\"))))))))))","v":"-"},"-",{"$f":"IF(OR(M202=\"-\",N202=\"-\"),\"-\",(N202/$N$310)*M202)","v":"-"},null,null,null,"-",null,null,null,null,null,1,null,"-","-",null,"-"]
[null,194,null,null,null,null,null,"",null,null,"",null,"-",{"$f":"IF(AND(G203=\"\",OR(L203<>\"\",L203=\"Zona non infetta\")),\"-\",IF(AND(L203<>\"\",L203<>\"Zona non infetta\"),G203,\"-\"))","v":"-"},"-",null,null,null,{"$f":"IF(OR(J203=\"\",J203=\"0\"),\"-\",IF(AND(J203<>0,L203<>\"Zona non infetta\"),G203,\"-\"))","v":"-"},null,null,null,null,null,{"$f":"IF(OR(L203=\"\",L203=\"Zona non infetta\"),1,0)","v":1},null,"-",{"$f":"IF(AND(Z203<>\"\",Z203<J203),\"ATTENZIONE: il numero di piante da reimpiantare DEVE ESSERE ALMENO PARI a quello delle piante oggetto di svellimento\",IF(AND(OR(Z203=0,Z203=\"-\"),AA203=\"-\"),\"-\",IF(AND(AA203>0,AA203<=238),\"Dati sulla fonte irrigua NON OBBLIGATORI. Si prega di compilare, ugualmente, la cella succesiva indicando se la p.lla è irrigua o meno\",\"Dati sulla fonte irrigua OBBLIGATORI. Pertanto, compilare tutte le celle successive\")))","v":"-"},null,{"$f":"IF(AND(AA203=\"-\",AC203=\"\"),\"-\",IF(AND(AA203<>0,AC203=\"\"),\"-\",IF(AND(AA203<=238,AC203=\"SI\"),\"Compilare i dati relativi alla FONTE IRRIGUA\",IF(AND(AA203<=238,AC203=\"NO\"),\"-\",IF(AND(AA203>238,AC203=\"SI\"),\"OBBLIGATORIO compilare i dati relativi alla FONTE IRRIGUA\",IF(AND(AA203>238,AC203=\"NO\"),\"ATTENZIONE: per densità uguali o superiori a 238 piante/Ha, è OBBLIGATORIO disporre di una FONTE IRRIGUA\"))))))","v":"-"}]
[null,{"$f":"B203+1","v":195},null,null,null,null,null,"",null,null,"",null,"-","-","-",null,null,null,"-",null,null,null,null,null,1,null,{"$f":"IF(S204=\"-\",\"-\",IF(OR(Z204=\"\",Z204=0),\"-\",10000*(I204-J204+Z204)/G204))","v":"-"},"-",null,"-"]
[null,196,null,null,null,null,null,"",null,null,"",null,"-","-","-",null,null,null,"-",null,null,null,null,null,1,null,"-","-",null,"-"]
[null,197,null,null,null,null,null,"",null,null,"",null,"-","-","-",null,null,null,"-",null,null,null,null,null,1,null,"-","-",null,"-"]
[null,198,null,null,null,null,null,"",null,null,"",null,"-","-","-",null,null,null,"-",null,null,null,null,null,1,null,"-","-",null,"-"]
[null,199,null,null,null,null,null,"",null,null,"",null,"-","-","-",null,null,null,"-",null,null,null,null,null,1,null,"-","-",null,"-"]
[null,200,null,null,null,null,null,"",null,null,"",null,"-","-","-",null,null,null,"-",null,null,null,null,null,1,null,"-","-",null,"-"]
[null,201,null,null,null,null,null,"",null,null,"",null,"-","-","-",null,null,null,"-",null,null,null,null,null,1,null,"-","-",null,"-"]
[null,202,null,null,null,null,null,"",null,null,"",null,"-","-","-",null,null,null,"-",null,null,null,null,null,1,null,"-","-",null,"-"]
[null,203,null,null,null,null,null,"",null,null,"",null,"-","-","-",null,null,null,"-",null,null,null,null,null,1,null,"-","-",null,"-"]
[null,204,null,null,null,null,null,"",null,null,"",null,"-","-","-",null,null,null,"-",null,null,null,null,null,1,null,"-","-",null,"-"]
[null,205,null,null,null,null,null,"",null,null,"",null,"-","-","-",null,null,null,"-",null,null,null,null,null,1,null,"-","-",null,"-"]
[null,206,null,null,null,null,null,"",null,null,"",null,"-","-","-",null,null,null,"-",null,null,null,null,null,1,null,"-","-",null,"-"]
[null,207,null,null,null,null,null,"",null,null,"",null,"-","-","-",null,null,null,"-",null,null,null,null,null,1,null,"-","-",null,"-"]
[null,208,null,null,null,null,null,"",null,null,"",null,"-","-","-",null,null,null,"-",null,null,null,null,null,1,null,"-","-",null,"-"]
[null,209,null,null,null,null,null,"",null,null,"",null,"-","-","-",null,null,null,"-",null,null,null,null,null,1,null,"-","-",null,"-"]
[null,210,null,null,null,null,null,"",null,null,"",null,"-","-","-",null,null,null,"-",null,null,null,null,null,1,null,"-","-",null,"-"]
[null,211,null,null,null,null,null,"",null,null,"",null,"-","-","-",null,null,null,"-",null,null,null,null,null,1,null,"-","-",null,"-"]
[null,212,null,null,null,null,null,"",null,null,"",null,"-","-","-",null,null,null,"-",null,null,null,null,null,1,null,"-","-",null,"-"]
[null,213,null,null,null,null,null,"",null,null,"",null,"-","-","-",null,null,null,"-",null,null,null,null,null,1,null,"-","-",null,"-"]
[null,214,null,null,null,null,null,"",null,null,"",null,"-","-","-",null,null,null,"-",null,null,null,null,null,1,null,"-","-",null,"-"]
[null,215,null,null,null,null,null,"",null,null,"",null,"-","-","-",null,null,null,"-",null,null,null,null,null,1,null,"-","-",null,"-"]
[null,216,null,null,null,null,null,"",null,null,"",null,"-","-","-",null,null,null,"-",null,null,null,null,null,1,null,"-","-",null,"-"]
[null,217,null,null,null,null,null,"",null,null,"",null,"-","-","-",null,null,null,"-",null,null,null,null,null,1,null,"-","-",null,"-"]
[null,218,null,null,null,null,null,"",null,null,"",null,"-","-","-",null,null,null,"-",null,null,null,null,null,1,null,"-","-",null,"-"]
[null,219,null,null,null,null,null,"",null,null,"",null,"-","-","-",null,null,null,"-",null,null,null,null,null,1,null,"-","-",null,"-"]
[null,220,null,null,null,null,null,"",null,null,"",null,"-","-","-",null,null,null,"-",null,null,null,null,null,1,null,"-","-",null,"-"]
[null,221,null,null,null,null,null,"",null,null,"",null,"-","-","-",null,null,null,"-",null,null,null,null,null,1,null,"-","-",null,"-"]
[null,222,null,null,null,null,null,"",null,null,"",null,"-","-","-",null,null,null,"-",null,null,null,null,null,1,null,"-","-",null,"-"]
[null,223,null,null,null,null,null,"",null,null,"",null,"-","-","-",null,null,null,"-",null,null,null,null,null,1,null,"-","-",null,"-"]
[null,224,null,null,null,null,null,"",null,null,"",null,"-","-","-",null,null,null,"-",null,null,null,null,null,1,null,"-","-",null,"-"]
[null,225,null,null,null,null,null,"",null,null,"",null,"-","-","-",null,null,null,"-",null,null,null,null,null,1,null,"-","-",null,"-"]
[null,226,null,null,null,null,null,"",null,null,"",null,"-","-","-",null,null,null,"-",null,null,null,null,null,1,null,"-","-",null,"-"]
[null,227,null,null,null,null,null,"",null,null,"",null,"-","-","-",null,null,null,"-",null,null,null,null,null,1,null,"-","-",null,"-"]
[null,228,null,null,null,null,null,"",null,null,"",null,"-","-","-",null,null,null,"-",null,null,null,null,null,1,null,"-","-",null,"-"]
[null,229,null,null,null,null,null,"",null,null,"",null,"-","-","-",null,null,null,"-",null,null,null,null,null,1,null,"-","-",null,"-"]
[null,230,null,null,null,null,null,"",null,null,"",null,"-","-","-",null,null,null,"-",null,null,null,null,null,1,null,"-","-",null,"-"]
[null,231,null,null,null,null,null,"",null,null,"",null,"-","-","-",null,null,null,"-",null,null,null,null,null,1,null,"-","-",null,"-"]
[null,232,null,null,null,null,null,"",null,null,"",null,"-","-","-",null,null,null,"-",null,null,null,null,null,1,null,"-","-",null,"-"]
[null,233,null,null,null,null,null,"",null,null,"",null,"-","-","-",null,null,null,"-",null,null,null,null,null,1,null,"-","-",null,"-"]
[null,234,null,null,null,null,null,"",null,null,"",null,"-","-","-",null,null,null,"-",null,null,null,null,null,1,null,"-","-",null,"-"]
[null,235,null,null,null,null,null,"",null,null,"",null,"-","-","-",null,null,null,"-",null,null,null,null,null,1,null,"-","-",null,"-"]
[null,236,null,null,null,null,null,"",null,null,"",null,"-","-","-",null,null,null,"-",null,null,null,null,null,1,null,"-","-",null,"-"]
[null,237,null,null,null,null,null,"",null,null,"",null,"-","-","-",null,null,null,"-",null,null,null,null,null,1,null,"-","-",null,"-"]
[null,238,null,null,null,null,null,"",null,null,"",null,"-","-","-",null,null,null,"-",null,null,null,null,null,1,null,"-","-",null,"-"]
[null,239,null,null,null,null,null,"",null,null,"",null,"-","-","-",null,null,null,"-",null,null,null,null,null,1,null,"-","-",null,"-"]
[null,240,null,null,null,null,null,"",null,null,"",null,"-","-","-",null,null,null,"-",null,null,null,null,null,1,null,"-","-",null,"-"]
[null,241,null,null,null,null,null,"",null,null,"",null,"-","-","-",null,null,null,"-",null,null,null,null,null,1,null,"-","-",null,"-"]
[null,242,null,null,null,null,null,"",null,null,"",null,"-","-","-",null,null,null,"-",null,null,null,null,null,1,null,"-","-",null,"-"]
[null,243,null,null,null,null,null,"",null,null,"",null,"-","-","-",null,null,null,"-",null,null,null,null,null,1,null,"-","-",null,"-"]
[null,244,null,null,null,null,null,"",null,null,"",null,"-","-","-",null,null,null,"-",null,null,null,null,null,1,null,"-","-",null,"-"]
[null,245,null,null,null,null,null,"",null,null,"",null,"-","-","-",null,null,null,"-",null,null,null,null,null,1,null,"-","-",null,"-"]
[null,246,null,null,null,null,null,"",null,null,"",null,"-","-","-",null,null,null,"-",null,null,null,null,null,1,null,"-","-",null,"-"]
[null,247,null,null,null,null,null,"",null,null,"",null,"-","-","-",null,null,null,"-",null,null,null,null,null,1,null,"-","-",null,"-"]
[null,248,null,null,null,null,null,"",null,null,"",null,"-","-","-",null,null,null,"-",null,null,null,null,null,1,null,"-","-",null,"-"]
[null,249,null,null,null,null,null,"",null,null,"",null,"-","-","-",null,null,null,"-",null,null,null,null,null,1,null,"-","-",null,"-"]
[null,250,null,null,null,null,null,"",null,null,"",null,"-","-","-",null,null,null,"-",null,null,null,null,null,1,null,"-","-",null,"-"]
[null,251,null,null,null,null,null,"",null,null,"",null,"-","-","-",null,null,null,"-",null,null,null,null,null,1,null,"-","-",null,"-"]
[null,252,null,null,null,null,null,{"$f":"IF(G261=\"\",\"\",G261/10000)","v":""},null,null,"",null,"-","-","-",null,null,null,"-",null,null,null,null,null,1,null,"-","-",null,"-"]
[null,253,null,null,null,null,null,"",null,null,"",null,"-","-","-",null,null,null,"-",null,null,null,null,null,1,null,"-","-",null,"-"]
[null,254,null,null,null,null,null,"",null,null,{"$f":"IF(AND(J263>0,L263=\"Zona non infetta\"),\"ATTENZIONE: il presente Avviso pubblico non prevede interventi in Zona non infetta\",\"\")","v":""},null,"-","-","-",null,null,null,"-",null,null,null,null,null,1,null,"-","-",null,"-"]
[null,255,null,null,null,null,null,"",null,null,"",null,"-","-","-",null,null,null,"-",null,null,null,null,null,1,null,"-","-",null,"-"]
[null,256,null,null,null,null,null,"",null,null,"",null,"-","-","-",null,null,null,"-",null,null,null,null,null,1,null,"-","-",null,"-"]
[null,257,null,null,null,null,null,"",null,null,"",null,{"$f":"IF(J266=0,\"-\",IF(AND(G266=\"\",L266<>\"\"),\"-\",IF(L266=\"DDSA n. 157 del 18/04/2014\",\"60\",IF(L266=\"DDSA n. 3 del 16/01/2015\",\"45\",IF(L266=\"DDSA n. 54 del 13/03/2015\",\"30\",IF(L266=\"DDSA n. 571 del 05/11/2015\",\"20\",IF(L266=\"DDSA n. 23 del 12/02/2016\",\"10\",IF(L266=\"DDSA n. 203 del 24/05/2016 e successive\",\"5\",IF(L266=\"Zona non infetta\",\"-\",IF(L266=\"\",\"-\"))))))))))","v":"-"},"-",{"$f":"IF(OR(M266=\"-\",N266=\"-\"),\"-\",(N266/$N$310)*M266)","v":"-"},null,null,null,"-",null,null,null,null,null,1,null,"-","-",null,"-"]
[null,258,null,null,null,null,null,"",null,null,"",null,"-",{"$f":"IF(AND(G267=\"\",OR(L267<>\"\",L267=\"Zona non infetta\")),\"-\",IF(AND(L267<>\"\",L267<>\"Zona non infetta\"),G267,\"-\"))","v":"-"},"-",null,null,null,{"$f":"IF(OR(J267=\"\",J267=\"0\"),\"-\",IF(AND(J267<>0,L267<>\"Zona non infetta\"),G267,\"-\"))","v":"-"},null,null,null,null,null,{"$f":"IF(OR(L267=\"\",L267=\"Zona non infetta\"),1,0)","v":1},null,"-",{"$f":"IF(AND(Z267<>\"\",Z267<J267),\"ATTENZIONE: il numero di piante da reimpiantare DEVE ESSERE ALMENO PARI a quello delle piante oggetto di svellimento\",IF(AND(OR(Z267=0,Z267=\"-\"),AA267=\"-\"),\"-\",IF(AND(AA267>0,AA267<=238),\"Dati sulla fonte irrigua NON OBBLIGATORI. Si prega di compilare, ugualmente, la cella succesiva indicando se la p.lla è irrigua o meno\",\"Dati sulla fonte irrigua OBBLIGATORI. Pertanto, compilare tutte le celle successive\")))","v":"-"},null,{"$f":"IF(AND(AA267=\"-\",AC267=\"\"),\"-\",IF(AND(AA267<>0,AC267=\"\"),\"-\",IF(AND(AA267<=238,AC267=\"SI\"),\"Compilare i dati relativi alla FONTE IRRIGUA\",IF(AND(AA267<=238,AC267=\"NO\"),\"-\",IF(AND(AA267>238,AC267=\"SI\"),\"OBBLIGATORIO compilare i dati relativi alla FONTE IRRIGUA\",IF(AND(AA267>238,AC267=\"NO\"),\"ATTENZIONE: per densità uguali o superiori a 238 piante/Ha, è OBBLIGATORIO disporre di una FONTE IRRIGUA\"))))))","v":"-"}]
[null,{"$f":"B267+1","v":259},null,null,null,null,null,"",null,null,"",null,"-","-","-",null,null,null,"-",null,null,null,null,null,1,null,{"$f":"IF(S268=\"-\",\"-\",IF(OR(Z268=\"\",Z268=0),\"-\",10000*(I268-J268+Z268)/G268))","v":"-"},"-",null,"-"]
[null,260,null,null,null,null,null,"",null,null,"",null,"-","-","-",null,null,null,"-",null,null,null,null,null,1,null,"-","-",null,"-"]
[null,261,null,null,null,null,null,"",null,null,"",null,"-","-","-",null,null,null,"-",null,null,null,null,null,1,null,"-","-",null,"-"]
[null,262,null,null,null,null,null,"",null,null,"",null,"-","-","-",null,null,null,"-",null,null,null,null,null,1,null,"-","-",null,"-"]
[null,263,null,null,null,null,null,"",null,null,"",null,"-","-","-",null,null,null,"-",null,null,null,null,null,1,null,"-","-",null,"-"]
[null,264,null,null,null,null,null,"",null,null,"",null,"-","-","-",null,null,null,"-",null,null,null,null,null,1,null,"-","-",null,"-"]
[null,265,null,null,null,null,null,"",null,null,"",null,"-","-","-",null,null,null,"-",null,null,null,null,null,1,null,"-","-",null,"-"]
[null,266,null,null,null,null,null,"",null,null,"",null,"-","-","-",null,null,null,"-",null,null,null,null,null,1,null,"-","-",null,"-"]
[null,267,null,null,null,null,null,"",null,null,"",null,"-","-","-",null,null,null,"-",null,null,null,null,null,1,null,"-","-",null,"-"]
[null,268,null,null,null,null,null,"",null,null,"",null,"-","-","-",null,null,null,"-",null,null,null,null,null,1,null,"-","-",null,"-"]
[null,269,null,null,null,null,null,"",null,null,"",null,"-","-","-",null,null,null,"-",null,null,null,null,null,1,null,"-","-",null,"-"]
[null,270,null,null,null,null,null,"",null,null,"",null,"-","-","-",null,null,null,"-",null,null,null,null,null,1,null,"-","-",null,"-"]
[null,271,null,null,null,null,null,"",null,null,"",null,"-","-","-",null,null,null,"-",null,null,null,null,null,1,null,"-","-",null,"-"]
[null,272,null,null,null,null,null,"",null,null,"",null,"-","-","-",null,null,null,"-",null,null,null,null,null,1,null,"-","-",null,"-"]
[null,273,null,null,null,null,null,"",null,null,"",null,"-","-","-",null,null,null,"-",null,null,null,null,null,1,null,"-","-",null,"-"]
[null,274,null,null,null,null,null,"",null,null,"",null,"-","-","-",null,null,null,"-",null,null,null,null,null,1,null,"-","-",null,"-"]
[null,275,null,null,null,null,null,"",null,null,"",null,"-","-","-",null,null,null,"-",null,null,null,null,null,1,null,"-","-",null,"-"]
[null,276,null,null,null,null,null,"",null,null,"",null,"-","-","-",null,null,null,"-",null,null,null,null,null,1,null,"-","-",null,"-"]
[null,277,null,null,null,null,null,"",null,null,"",null,"-","-","-",null,null,null,"-",null,null,null,null,null,1,null,"-","-",null,"-"]
[null,278,null,null,null,null,null,"",null,null,"",null,"-","-","-",null,null,null,"-",null,null,null,null,null,1,null,"-","-",null,"-"]
[null,279,null,null,null,null,null,"",null,null,"",null,"-","-","-",null,null,null,"-",null,null,null,null,null,1,null,"-","-",null,"-"]
[null,280,null,null,null,null,null,"",null,null,"",null,"-","-","-",null,null,null,"-",null,null,null,null,null,1,null,"-","-",null,"-"]
[null,281,null,null,null,null,null,"",null,null,"",null,"-","-","-",null,null,null,"-",null,null,null,null,null,1,null,"-","-",null,"-"]
[null,282,null,null,null,null,null,"",null,null,"",null,"-","-","-",null,null,null,"-",null,null,null,null,null,1,null,"-","-",null,"-"]
[null,283,null,null,null,null,null,"",null,null,"",null,"-","-","-",null,null,null,"-",null,null,null,null,null,1,null,"-","-",null,"-"]
[null,284,null,null,null,null,null,"",null,null,"",null,"-","-","-",null,null,null,"-",null,null,null,null,null,1,null,"-","-",null,"-"]
[null,285,null,null,null,null,null,"",null,null,"",null,"-","-","-",null,null,null,"-",null,null,null,null,null,1,null,"-","-",null,"-"]
[null,286,null,null,null,null,null,"",null,null,"",null,"-","-","-",null,null,null,"-",null,null,null,null,null,1,null,"-","-",null,"-"]
[null,287,null,null,null,null,null,"",null,null,"",null,"-","-","-",null,null,null,"-",null,null,null,null,null,1,null,"-","-",null,"-"]
[null,288,null,null,null,null,null,"",null,null,"",null,"-","-","-",null,null,null,"-",null,null,null,null,null,1,null,"-","-",null,"-"]
[null,289,null,null,null,null,null,"",null,null,"",null,"-","-","-",null,null,null,"-",null,null,null,null,null,1,null,"-","-",null,"-"]
[null,290,null,null,null,null,null,"",null,null,"",null,"-","-","-",null,null,null,"-",null,null,null,null,null,1,null,"-","-",null,"-"]
[null,291,null,null,null,null,null,"",null,null,"",null,"-","-","-",null,null,null,"-",null,null,null,null,null,1,null,"-","-",null,"-"]
[null,292,null,null,null,null,null,"",null,null,"",null,"-","-","-",null,null,null,"-",null,null,null,null,null,1,null,"-","-",null,"-"]
[null,293,null,null,null,null,null,"",null,null,"",null,"-","-","-",null,null,null,"-",null,null,null,null,null,1,null,"-","-",null,"-"]
[null,294,null,null,null,null,null,"",null,null,"",null,"-","-","-",null,null,null,"-",null,null,null,null,null,1,null,"-","-",null,"-"]
[null,295,null,null,null,null,null,"",null,null,"",null,"-","-","-",null,null,null,"-",null,null,null,null,null,1,null,"-","-",null,"-"]
[null,296,null,null,null,null,null,"",null,null,"",null,"-","-","-",null,null,null,"-",null,null,null,null,null,1,null,"-","-",null,"-"]
[null,297,null,null,null,null,null,"",null,null,"",null,"-","-","-",null,null,null,"-",null,null,null,null,null,1,null,"-","-",null,"-"]
[null,298,null,null,null,null,null,"",null,null,"",null,"-","-","-",null,null,null,"-",null,null,null,null,null,1,null,"-","-",null,"-"]
[null,299,null,null,null,null,null,"",null,null,"",null,"-","-","-",null,null,null,"-",null,null,null,null,null,1,null,"-","-",null,"-"]
[null,300,null,null,null,null,null,"",null,null,"",null,"-","-","-",null,null,null,"-",null,null,null,null,null,1,null,"-","-",null,"-"]
[null,"TOTALE",null,null,null,null,{"$f":"SUM(G10:G309)","v":0},{"$f":"SUM(H10:H309)","v":0},{"$f":"SUM(I10:I309)","v":0},{"$f":"SUMIF(L10:L309,\"<>Zona non infetta\",J10:J309)","v":0},{"$f":"IF(J310/I310<=30%,\"ATTENZIONE: percentuale di danno dichiarato inferiore al minimo previsto nell'Avviso pubblico (30%)\",J310/I310)","v":{"$error":"#DIV/0!"}},null,null,{"$f":"SUM(N10:N309)","v":0},{"$f":"SUM(O10:O309)","v":0},{"$f":"P10","v":0},{"$f":"Q10","v":0},{"$f":"O310+P310+Q310","v":0},{"$f":"SUM(S10:S309)","v":0},{"$f":"FLOOR((10000*J310/S310),1)","v":{"$error":"#DIV/0!"}},{"$f":"IF(AND(T310>=1,T310<=100),75,IF(AND(T310>=101,T310<=150),60,IF(AND(T310>=151,T310<=200),50,IF(T310>=201,40,))))","v":{"$error":"#DIV/0!"}},{"$f":"J310*U310*10000/S310","v":{"$error":"#DIV/0!"}},{"$f":"IF(AND(U310=75,V310<=7500),V310,IF(AND(U310=75,V310>7500),7500,IF(AND(U310=60,V310<7500),7500,IF(AND(U310=60,V310>=7500,V310<=9000),V310,IF(AND(U310=60,V310>9000),9000,IF(AND(U310=50,V310<9000),9000,IF(AND(U310=50,V310>=9000,V310<=10000),V310,IF(AND(U310=50,V310>10000),10000,IF(AND(U310=40,V310<10000),10000,IF(AND(U310=40,V310>=10000,V310<=15000),V310,IF(AND(U310=40,V310>15000),15000)))))))))))","v":{"$error":"#DIV/0!"}},{"$f":"IF(W310=\"-\",\"IMPORTO INFERIORE AL MINIMO (€ 2.000) CONSENTITO PER LA PRESENTAZIONE DELLA DdS\",IF((W310*S310/10000)<2000,\"IMPORTO INFERIORE AL MINIMO (€ 2.000) CONSENTITO PER LA PRESENTAZIONE DELLA DdS\",W310*S310/10000))","v":{"$error":"#DIV/0!"}},null,{"$f":"IF(SUM(Z10:Z309)<J310,\"ATTENZIONE: il numero di piante da reimpiantare è inferiore a quello oggetto di intervento\",SUM(Z10:Z309))","v":0}]

{"sheet":"3 - RIEPILOGO","index":2,"n_rows":13,"n_cols":11,"rows_kept":13,"cut":false,"hidden":false,"merged":[[12,7,16,10],[12,1,16,5],[10,7,10,8],[3,3,3,4],[3,1,3,2],[5,1,5,10]]}
["COMUNI"]
[]
[]
[null,"CUAA / P.IVA:",null,{"$f":"IF('1 - ANAGRAFICA'!C10<>\"\",'1 - ANAGRAFICA'!C10,\"\")","v":""}]
[]
[null,"QUADRO 3 - RIEPILOGO"]
[null,null,{"$f":"'2 - PROGETTO DI REIMPIANTO'!G8","v":"SUP.  OLIVICOLA\n(mq)"},{"$f":"'2 - PROGETTO DI REIMPIANTO'!J8","v":"N° PIANTE DI OLIVO OGGETTO DI SVELLIMENTO"},{"$f":"'2 - PROGETTO DI REIMPIANTO'!O8","v":" PUNTEGGIO PONDERATO DI CUI AL PRINCIPIO 3"},{"$f":"'2 - PROGETTO DI REIMPIANTO'!P8","v":"PUNTEGGIO DICHIARATO DI CUI AL PRINCIPIO 2"},{"$f":"'2 - PROGETTO DI REIMPIANTO'!Q8","v":"PUNTEGGIO DICHIARATO DI CUI AL PRINCIPIO 1"},{"$f":"'2 - PROGETTO DI REIMPIANTO'!R8","v":"PUNTEGGIO TOTALE"},{"$f":"'2 - PROGETTO DI REIMPIANTO'!U8","v":"€/PIANTA PER CLASSE DI DENSITÁ IMPIANTO"},{"$f":"'2 - PROGETTO DI REIMPIANTO'!X8","v":"TOTALE SPESA RICHIESTA\n(€)"},{"$f":"'2 - PROGETTO DI REIMPIANTO'!Z8","v":"N° PIANTE DA REIMPIANTARE"}]
[null,"TOTALE",{"$f":"IF('2 - PROGETTO DI REIMPIANTO'!G310<>\"\",'2 - PROGETTO DI REIMPIANTO'!G310,\"\")","v":0},{"$f":"IF('2 - PROGETTO DI REIMPIANTO'!J310<>\"\",'2 - PROGETTO DI REIMPIANTO'!J310,\"\")","v":0},{"$f":"IF('2 - PROGETTO DI REIMPIANTO'!O310<>\"\",'2 - PROGETTO DI REIMPIANTO'!O310,\"\")","v":0},{"$f":"IF('2 - PROGETTO DI REIMPIANTO'!P310<>\"\",'2 - PROGETTO DI REIMPIANTO'!P310,\"\")","v":0},{"$f":"IF('2 - PROGETTO DI REIMPIANTO'!Q310<>\"\",'2 - PROGETTO DI REIMPIANTO'!Q310,\"\")","v":0},{"$f":"IF('2 - PROGETTO DI REIMPIANTO'!R310<>\"\",'2 - PROGETTO DI REIMPIANTO'!R310,\"\")","v":0},{"$f":"IF('2 - PROGETTO DI REIMPIANTO'!U310<>\"\",'2 - PROGETTO DI REIMPIANTO'!U310,\"\")","v":{"$error":"#DIV/0!"}},{"$f":"IF('2 - PROGETTO DI REIMPIANTO'!X310<>\"\",'2 - PROGETTO DI REIMPIANTO'!X310,\"\")","v":{"$error":"#DIV/0!"}},{"$f":"IF('2 - PROGETTO DI REIMPIANTO'!Z310<>\"\",'2 - PROGETTO DI REIMPIANTO'!Z310,\"\")","v":0}]
[]
[]
[null,null,null,null,null,"Luogo e data",null,{"$f":"IF('1 - ANAGRAFICA'!C41<>\"\",'1 - ANAGRAFICA'!C41,\"\")","v":""}]
[]
[null,"Firma del richiedente/legale rappresentante",null,null,null,null,null,"Firma e timbro del tecnico incaricato"]

{"sheet":"Foglio1","index":3,"n_rows":259,"n_cols":16,"rows_kept":259,"cut":false,"hidden":true,"merged":[[0,12,0,13],[91,12,91,13],[0,14,0,15]]}
["Accadia",null,"Pozzo aziendale",null,null,null,null,null,null,null,null,"COMUNE","DDSA n. 157",null,"DDSA n. 3"]
["Acquarica del Capo",null,"Pozzo collettivo privato",null,null,null,null,null,null,null,null,null,"FG","P.LLA","FG","P.LLA"]
["Acquaviva delle Fonti",null,"Pozzo pubblico",null,null,null,null,null,null,null,null,"Accadia"]
["Adelfia",null,"Consorzio di Bonifica",null,null,null,null,null,null,null,null,"Acquarica del Capo"]
["Alberobello",null,"Comunioni irrigue",null,null,null,null,null,null,null,null,"Acquaviva delle Fonti"]
["Alberona",null,"Corso d'acqua - fiume",null,null,null,null,null,null,null,null,"Adelfia"]
["Alessano",null,"Vasca di accumulo collettiva",null,null,null,null,null,null,null,null,"Alberobello"]
["Alezio",null,"Altro (specificare in cella successiva)",null,null,null,null,null,null,null,null,"Alberona"]
["Alliste",null,null,null,null,null,null,null,null,null,null,"Alessano"]
["Altamura",null,null,null,null,null,null,null,null,null,null,"Alezio"]
["Andrano",null,null,null,null,null,null,null,null,null,null,"Alliste"]
["Andria",null,null,null,null,null,null,null,null,null,null,"Altamura"]
["Anzano di Puglia",null,null,null,null,null,null,null,null,null,null,"Andrano"]
["Apricena",null,null,null,null,null,null,null,null,null,null,"Andria"]
["Aradeo",null,null,null,null,null,null,null,null,null,null,"Anzano di Puglia"]
["Arnesano",null,null,null,null,null,null,null,null,null,null,"Apricena"]
["Ascoli Satriano",null,null,null,null,null,null,null,null,null,null,"Aradeo"]
["Avetrana",null,null,null,null,null,null,null,null,null,null,"Arnesano"]
["Bagnolo del Salento",null,null,null,null,null,null,null,null,null,null,"Ascoli Satriano"]
["Bari",null,null,null,null,null,null,null,null,null,null,"Avetrana"]
["Barletta",null,null,null,null,null,null,null,null,null,null,"Bagnolo del Salento"]
["Biccari",null,null,null,null,null,null,null,null,null,null,"Bari"]
["Binetto",null,null,null,null,null,null,null,null,null,null,"Barletta"]
["Bisceglie",null,null,null,null,null,null,null,null,null,null,"Biccari"]
["Bitetto",null,null,null,null,null,null,null,null,null,null,"Binetto"]
["Bitonto",null,null,null,null,null,null,null,null,null,null,"Bisceglie"]
["Bitritto",null,null,null,null,null,null,null,null,null,null,"Bitetto"]
["Botrugno",null,null,null,null,null,null,null,null,null,null,"Bitonto"]
["Bovino",null,null,null,null,null,null,null,null,null,null,"Bitritto"]
["Brindisi",null,null,null,null,null,null,null,null,null,null,"Botrugno"]
["Cagnano Varano",null,null,null,null,null,null,null,null,null,null,"Bovino"]
["Calimera",null,null,null,null,null,null,null,null,null,null,"Brindisi"]
["Campi Salentina",null,null,null,null,null,null,null,null,null,null,"Cagnano Varano"]
["Candela",null,null,null,null,null,null,null,null,null,null,"Calimera"]
["Cannole",null,null,null,null,null,null,null,null,null,null,"Campi Salentina"]
["Canosa di Puglia",null,null,null,null,null,null,null,null,null,null,"Candela"]
["Caprarica di Lecce",null,null,null,null,null,null,null,null,null,null,"Cannole"]
["Capurso",null,null,null,null,null,null,null,null,null,null,"Canosa di Puglia"]
["Carapelle",null,null,null,null,null,null,null,null,null,null,"Caprarica di Lecce"]
["Carlantino",null,null,null,null,null,null,null,null,null,null,"Capurso"]
["Carmiano",null,null,null,null,null,null,null,null,null,null,"Carapelle"]
["Carosino",null,null,null,null,null,null,null,null,null,null,"Carlantino"]
["Carovigno",null,null,null,null,null,null,null,null,null,null,"Carmiano"]
["Carpignano Salentino",null,null,null,null,null,null,null,null,null,null,"Carosino"]
["Carpino",null,null,null,null,null,null,null,null,null,null,"Carovigno"]
["Casalnuovo Monterotaro",null,null,null,null,null,null,null,null,null,null,"Carpignano Salentino"]
["Casalvecchio di Puglia",null,null,null,null,null,null,null,null,null,null,"Carpino"]
["Casamassima",null,null,null,null,null,null,null,null,null,null,"Casalnuovo Monterotaro"]
["Casarano",null,null,null,null,null,null,null,null,null,null,"Casalvecchio di Puglia"]
["Cassano delle Murge",null,null,null,null,null,null,null,null,null,null,"Casamassima"]
["Castellana Grotte",null,null,null,null,null,null,null,null,null,null,"Casarano"]
["Castellaneta",null,null,null,null,null,null,null,null,null,null,"Cassano delle Murge"]
["Castelluccio dei Sauri",null,null,null,null,null,null,null,null,null,null,"Castellana Grotte"]
["Castelluccio Valmaggiore",null,null,null,null,null,null,null,null,null,null,"Castellaneta"]
["Castelnuovo della Daunia",null,null,null,null,null,null,null,null,null,null,"Castelluccio dei Sauri"]
["Castri di Lecce",null,null,null,null,null,null,null,null,null,null,"Castelluccio Valmaggiore"]
["Castrignano de' Greci",null,null,null,null,null,null,null,null,null,null,"Castelnuovo della Daunia"]
["Castrignano del Capo",null,null,null,null,null,null,null,null,null,null,"Castri di Lecce"]
["Castro",null,null,null,null,null,null,null,null,null,null,"Castrignano de' Greci"]
["Cavallino",null,null,null,null,null,null,null,null,null,null,"Castrignano del Capo"]
["Ceglie Messapica",null,null,null,null,null,null,null,null,null,null,"Castro"]
["Celenza Valfortore",null,null,null,null,null,null,null,null,null,null,"Cavallino"]
["Cellamare",null,null,null,null,null,null,null,null,null,null,"Ceglie Messapica"]
["Celle di San Vito",null,null,null,null,null,null,null,null,null,null,"Celenza Valfortore"]
["Cellino San Marco",null,null,null,null,null,null,null,null,null,null,"Cellamare"]
["Cerignola",null,null,null,null,null,null,null,null,null,null,"Celle di San Vito"]
["Chieuti",null,null,null,null,null,null,null,null,null,null,"Cellino San Marco"]
["Cisternino",null,null,null,null,null,null,null,null,null,null,"Cerignola"]
["Collepasso",null,null,null,null,null,null,null,null,null,null,"Chieuti"]
["Conversano",null,null,null,null,null,null,null,null,null,null,"Cisternino"]
["Copertino",null,null,null,null,null,null,null,null,null,null,"Collepasso"]
["Corato",null,null,null,null,null,null,null,null,null,null,"Conversano"]
["Corigliano d'Otranto",null,null,null,null,null,null,null,null,null,null,"Copertino",25,"33-248-250/252"]
["Corsano",null,null,null,null,null,null,null,null,null,null,"Corato"]
["Crispiano",null,null,null,null,null,null,null,null,null,null,"Corigliano d'Otranto"]
["Cursi",null,null,null,null,null,null,null,null,null,null,"Corsano"]
["Cutrofiano",null,null,null,null,null,null,null,null,null,null,"Crispiano"]
["Deliceto",null,null,null,null,null,null,null,null,null,null,"Cursi"]
["Diso",null,null,null,null,null,null,null,null,null,null,"Cutrofiano"]
["Erchie",null,null,null,null,null,null,null,null,null,null,"Deliceto"]
["Faeto",null,null,null,null,null,null,null,null,null,null,"Diso"]
["Faggiano",null,null,null,null,null,null,null,null,null,null,"Erchie"]
["Fasano",null,null,null,null,null,null,null,null,null,null,"Faeto"]
["Foggia",null,null,null,null,null,null,null,null,null,null,"Faggiano"]
["Fragagnano",null,null,null,null,null,null,null,null,null,null,"Fasano"]
["Francavilla Fontana",null,null,null,null,null,null,null,null,null,null,"Foggia"]
["Gagliano del Capo",null,null,null,null,null,null,null,null,null,null,"Fragagnano"]
["Galatina",null,null,null,null,null,null,null,null,null,null,"Francavilla Fontana"]
["Galatone",null,null,null,null,null,null,null,null,null,null,"Gagliano del Capo"]
["Gallipoli",null,null,null,null,null,null,null,null,null,null,"Galatina",8,"248,250/252 ex 199/244"]
["Ginosa",null,null,null,null,null,null,null,null,null,null,"Galatone"]
["Gioia del Colle",null,null,null,null,null,null,null,null,null,null,"Gallipoli","diversi"]
["Giovinazzo",null,null,null,null,null,null,null,null,null,null,"Ginosa"]
["Giuggianello",null,null,null,null,null,null,null,null,null,null,"Gioia del Colle"]
["Giurdignano",null,null,null,null,null,null,null,null,null,null,"Giovinazzo"]
["Gravina in Puglia",null,null,null,null,null,null,null,null,null,null,"Giuggianello"]
["Grottaglie",null,null,null,null,null,null,null,null,null,null,"Giurdignano"]
["Grumo Appula",null,null,null,null,null,null,null,null,null,null,"Gravina in Puglia"]
["Guagnano",null,null,null,null,null,null,null,null,null,null,"Grottaglie"]
["Ischitella",null,null,null,null,null,null,null,null,null,null,"Grumo Appula"]
["Isole Tremiti",null,null,null,null,null,null,null,null,null,null,"Guagnano"]
["Laterza",null,null,null,null,null,null,null,null,null,null,"Ischitella"]
["Latiano",null,null,null,null,null,null,null,null,null,null,"Isole Tremiti"]
["Lecce",null,null,null,null,null,null,null,null,null,null,"Laterza"]
["Leporano",null,null,null,null,null,null,null,null,null,null,"Latiano"]
["Lequile",null,null,null,null,null,null,null,null,null,null,"Lecce",91,"16/115/4-37/44-45/"]
["Lesina",null,null,null,null,null,null,null,null,null,null,"Leporano"]
["Leverano",null,null,null,null,null,null,null,null,null,null,"Lequile"]
["Lizzanello",null,null,null,null,null,null,null,null,null,null,"Lesina"]
["Lizzano",null,null,null,null,null,null,null,null,null,null,"Leverano"]
["Locorotondo",null,null,null,null,null,null,null,null,null,null,"Lizzanello"]
["Lucera",null,null,null,null,null,null,null,null,null,null,"Lizzano"]
["Maglie",null,null,null,null,null,null,null,null,null,null,"Locorotondo"]
["Manduria",null,null,null,null,null,null,null,null,null,null,"Lucera"]
["Manfredonia",null,null,null,null,null,null,null,null,null,null,"Maglie"]
["Margherita di Savoia",null,null,null,null,null,null,null,null,null,null,"Manduria"]
["Martano",null,null,null,null,null,null,null,null,null,null,"Manfredonia"]
["Martignano",null,null,null,null,null,null,null,null,null,null,"Margherita di Savoia"]
["Martina Franca",null,null,null,null,null,null,null,null,null,null,"Martano"]
["Maruggio",null,null,null,null,null,null,null,null,null,null,"Martignano"]
["Massafra",null,null,null,null,null,null,null,null,null,null,"Martina Franca"]
["Matino",null,null,null,null,null,null,null,null,null,null,"Maruggio"]
["Mattinata",null,null,null,null,null,null,null,null,null,null,"Massafra"]
["Melendugno",null,null,null,null,null,null,null,null,null,null,"Matino"]
["Melissano",null,null,null,null,null,null,null,null,null,null,"Mattinata"]
["Melpignano",null,null,null,null,null,null,null,null,null,null,"Melendugno"]
["Mesagne",null,null,null,null,null,null,null,null,null,null,"Melissano"]
["Miggiano",null,null,null,null,null,null,null,null,null,null,"Melpignano"]
["Minervino di Lecce",null,null,null,null,null,null,null,null,null,null,"Mesagne"]
["Minervino Murge",null,null,null,null,null,null,null,null,null,null,"Miggiano"]
["Modugno",null,null,null,null,null,null,null,null,null,null,"Minervino di Lecce"]
["Mola di Bari",null,null,null,null,null,null,null,null,null,null,"Minervino Murge"]
["Molfetta",null,null,null,null,null,null,null,null,null,null,"Modugno"]
["Monopoli",null,null,null,null,null,null,null,null,null,null,"Mola di Bari"]
["Monte Sant'Angelo",null,null,null,null,null,null,null,null,null,null,"Molfetta"]
["Monteiasi",null,null,null,null,null,null,null,null,null,null,"Monopoli"]
["Monteleone di Puglia",null,null,null,null,null,null,null,null,null,null,"Monte Sant'Angelo"]
["Montemesola",null,null,null,null,null,null,null,null,null,null,"Monteiasi"]
["Monteparano",null,null,null,null,null,null,null,null,null,null,"Monteleone di Puglia"]
["Monteroni di Lecce",null,null,null,null,null,null,null,null,null,null,"Montemesola"]
["Montesano Salentino",null,null,null,null,null,null,null,null,null,null,"Monteparano"]
["Morciano di Leuca",null,null,null,null,null,null,null,null,null,null,"Monteroni di Lecce"]
["Motta Montecorvino",null,null,null,null,null,null,null,null,null,null,"Montesano Salentino"]
["Mottola",null,null,null,null,null,null,null,null,null,null,"Morciano di Leuca"]
["Muro Leccese",null,null,null,null,null,null,null,null,null,null,"Motta Montecorvino"]
["Nardò",null,null,null,null,null,null,null,null,null,null,"Mottola"]
["Neviano",null,null,null,null,null,null,null,null,null,null,"Muro Leccese"]
["Noci",null,null,null,null,null,null,null,null,null,null,"Nardò"]
["Nociglia",null,null,null,null,null,null,null,null,null,null,"Neviano"]
["Noicàttaro",null,null,null,null,null,null,null,null,null,null,"Noci"]
["Novoli",null,null,null,null,null,null,null,null,null,null,"Nociglia"]
["Ordona",null,null,null,null,null,null,null,null,null,null,"Noicàttaro"]
["Oria",null,null,null,null,null,null,null,null,null,null,"Novoli"]
["Orsara di Puglia",null,null,null,null,null,null,null,null,null,null,"Ordona"]
["Orta Nova",null,null,null,null,null,null,null,null,null,null,"Oria"]
["Ortelle",null,null,null,null,null,null,null,null,null,null,"Orsara di Puglia"]
["Ostuni",null,null,null,null,null,null,null,null,null,null,"Orta Nova"]
["Otranto",null,null,null,null,null,null,null,null,null,null,"Ortelle"]
["Palagianello",null,null,null,null,null,null,null,null,null,null,"Ostuni"]
["Palagiano",null,null,null,null,null,null,null,null,null,null,"Otranto"]
["Palmariggi",null,null,null,null,null,null,null,null,null,null,"Palagianello"]
["Palo del Colle",null,null,null,null,null,null,null,null,null,null,"Palagiano"]
["Panni",null,null,null,null,null,null,null,null,null,null,"Palmariggi"]
["Parabita",null,null,null,null,null,null,null,null,null,null,"Palo del Colle"]
["Patù",null,null,null,null,null,null,null,null,null,null,"Panni"]
["Peschici",null,null,null,null,null,null,null,null,null,null,"Parabita"]
["Pietramontecorvino",null,null,null,null,null,null,null,null,null,null,"Patù"]
["Poggiardo",null,null,null,null,null,null,null,null,null,null,"Peschici"]
["Poggio Imperiale",null,null,null,null,null,null,null,null,null,null,"Pietramontecorvino"]
["Poggiorsini",null,null,null,null,null,null,null,null,null,null,"Poggiardo"]
["Polignano a Mare",null,null,null,null,null,null,null,null,null,null,"Poggio Imperiale"]
["Porto Cesareo",null,null,null,null,null,null,null,null,null,null,"Poggiorsini"]
["Presicce",null,null,null,null,null,null,null,null,null,null,"Polignano a Mare"]
["Pulsano",null,null,null,null,null,null,null,null,null,null,"Porto Cesareo"]
["Putignano",null,null,null,null,null,null,null,null,null,null,"Presicce"]
["Racale",null,null,null,null,null,null,null,null,null,null,"Pulsano"]
["Rignano Garganico",null,null,null,null,null,null,null,null,null,null,"Putignano"]
["Roccaforzata",null,null,null,null,null,null,null,null,null,null,"Racale"]
["Rocchetta Sant'Antonio",null,null,null,null,null,null,null,null,null,null,"Rignano Garganico"]
["Rodi Garganico",null,null,null,null,null,null,null,null,null,null,"Roccaforzata"]
["Roseto Valfortore",null,null,null,null,null,null,null,null,null,null,"Rocchetta Sant'Antonio"]
["Ruffano",null,null,null,null,null,null,null,null,null,null,"Rodi Garganico"]
["Rutigliano",null,null,null,null,null,null,null,null,null,null,"Roseto Valfortore"]
["Ruvo di Puglia",null,null,null,null,null,null,null,null,null,null,"Ruffano"]
["Salice Salentino",null,null,null,null,null,null,null,null,null,null,"Rutigliano"]
["Salve",null,null,null,null,null,null,null,null,null,null,"Ruvo di Puglia"]
["Sammichele di Bari",null,null,null,null,null,null,null,null,null,null,"Salice Salentino"]
["San Cassiano",null,null,null,null,null,null,null,null,null,null,"Salve"]
["San Cesario di Lecce",null,null,null,null,null,null,null,null,null,null,"Sammichele di Bari"]
["San Donaci",null,null,null,null,null,null,null,null,null,null,"San Cassiano"]
["San Donato di Lecce",null,null,null,null,null,null,null,null,null,null,"San Cesario di Lecce"]
["San Ferdinando di Puglia",null,null,null,null,null,null,null,null,null,null,"San Donaci"]
["San Giorgio Ionico",null,null,null,null,null,null,null,null,null,null,"San Donato di Lecce"]
["San Giovanni Rotondo",null,null,null,null,null,null,null,null,null,null,"San Ferdinando di Puglia"]
["San Marco in Lamis",null,null,null,null,null,null,null,null,null,null,"San Giorgio Ionico"]
["San Marco la Catola",null,null,null,null,null,null,null,null,null,null,"San Giovanni Rotondo"]
["San Marzano di San Giuseppe",null,null,null,null,null,null,null,null,null,null,"San Marco in Lamis"]
["San Michele Salentino",null,null,null,null,null,null,null,null,null,null,"San Marco la Catola"]
["San Nicandro Garganico",null,null,null,null,null,null,null,null,null,null,"San Marzano di San Giuseppe"]
["San Pancrazio Salentino",null,null,null,null,null,null,null,null,null,null,"San Michele Salentino"]
["San Paolo di Civitate",null,null,null,null,null,null,null,null,null,null,"San Nicandro Garganico"]
["San Pietro in Lama",null,null,null,null,null,null,null,null,null,null,"San Pancrazio Salentino"]
["San Pietro Vernotico",null,null,null,null,null,null,null,null,null,null,"San Paolo di Civitate"]
["San Severo",null,null,null,null,null,null,null,null,null,null,"San Pietro in Lama"]
["San Vito dei Normanni",null,null,null,null,null,null,null,null,null,null,"San Pietro Vernotico"]
["Sanarica",null,null,null,null,null,null,null,null,null,null,"San Severo"]
["Sannicandro di Bari",null,null,null,null,null,null,null,null,null,null,"San Vito dei Normanni"]
["Sannicola",null,null,null,null,null,null,null,null,null,null,"Sanarica"]
["Santa Cesarea Terme",null,null,null,null,null,null,null,null,null,null,"Sannicandro di Bari"]
["Sant'Agata di Puglia",null,null,null,null,null,null,null,null,null,null,"Sannicola"]
["Santeramo in Colle",null,null,null,null,null,null,null,null,null,null,"Santa Cesarea Terme"]
["Sava",null,null,null,null,null,null,null,null,null,null,"Sant'Agata di Puglia"]
["Scorrano",null,null,null,null,null,null,null,null,null,null,"Santeramo in Colle"]
["Seclì",null,null,null,null,null,null,null,null,null,null,"Sava"]
["Serracapriola",null,null,null,null,null,null,null,null,null,null,"Scorrano"]
["Sogliano Cavour",null,null,null,null,null,null,null,null,null,null,"Seclì"]
["Soleto",null,null,null,null,null,null,null,null,null,null,"Serracapriola"]
["Specchia",null,null,null,null,null,null,null,null,null,null,"Sogliano Cavour"]
["Spinazzola",null,null,null,null,null,null,null,null,null,null,"Soleto"]
["Spongano",null,null,null,null,null,null,null,null,null,null,"Specchia"]
["Squinzano",null,null,null,null,null,null,null,null,null,null,"Spinazzola"]
["Statte",null,null,null,null,null,null,null,null,null,null,"Spongano"]
["Sternatia",null,null,null,null,null,null,null,null,null,null,"Squinzano"]
["Stornara",null,null,null,null,null,null,null,null,null,null,"Statte"]
["Stornarella",null,null,null,null,null,null,null,null,null,null,"Sternatia",6,50]
["Supersano",null,null,null,null,null,null,null,null,null,null,"Stornara"]
["Surano",null,null,null,null,null,null,null,null,null,null,"Stornarella"]
["Surbo",null,null,null,null,null,null,null,null,null,null,"Supersano"]
["Taranto",null,null,null,null,null,null,null,null,null,null,"Surano"]
["Taurisano",null,null,null,null,null,null,null,null,null,null,"Surbo"]
["Taviano",null,null,null,null,null,null,null,null,null,null,"Taranto"]
["Terlizzi",null,null,null,null,null,null,null,null,null,null,"Taurisano"]
["Tiggiano",null,null,null,null,null,null,null,null,null,null,"Taviano"]
["Torchiarolo",null,null,null,null,null,null,null,null,null,null,"Terlizzi"]
["Toritto",null,null,null,null,null,null,null,null,null,null,"Tiggiano"]
["Torre Santa Susanna",null,null,null,null,null,null,null,null,null,null,"Torchiarolo"]
["Torremaggiore",null,null,null,null,null,null,null,null,null,null,"Toritto"]
["Torricella",null,null,null,null,null,null,null,null,null,null,"Torre Santa Susanna"]
["Trani",null,null,null,null,null,null,null,null,null,null,"Torremaggiore"]
["Trepuzzi",null,null,null,null,null,null,null,null,null,null,"Torricella"]
["Tricase",null,null,null,null,null,null,null,null,null,null,"Trani"]
["Triggiano",null,null,null,null,null,null,null,null,null,null,"Trepuzzi",16,"94/85/87/122/16/17-96/76/92/91"]
["Troia",null,null,null,null,null,null,null,null,null,null,"Tricase"]
["Tuglie",null,null,null,null,null,null,null,null,null,null,"Triggiano"]
["Turi",null,null,null,null,null,null,null,null,null,null,"Troia"]
["Ugento",null,null,null,null,null,null,null,null,null,null,"Tuglie"]
["Uggiano La Chiesa",null,null,null,null,null,null,null,null,null,null,"Turi"]
["Valenzano",null,null,null,null,null,null,null,null,null,null,"Ugento"]
["Veglie",null,null,null,null,null,null,null,null,null,null,"Uggiano La Chiesa"]
["Vernole",null,null,null,null,null,null,null,null,null,null,"Valenzano"]
["Vico del Gargano",null,null,null,null,null,null,null,null,null,null,"Veglie"]
["Vieste",null,null,null,null,null,null,null,null,null,null,"Vernole"]
["Villa Castelli",null,null,null,null,null,null,null,null,null,null,"Vico del Gargano"]
["Volturara Appula",null,null,null,null,null,null,null,null,null,null,"Vieste"]
["Volturino",null,null,null,null,null,null,null,null,null,null,"Villa Castelli"]
["Zapponeta",null,null,null,null,null,null,null,null,null,null,"Volturara Appula"]
["Zollino",null,null,null,null,null,null,null,null,null,null,"Volturino"]
[null,null,null,null,null,null,null,null,null,null,null,"Zapponeta"]
[null,null,null,null,null,null,null,null,null,null,null,"Zollino"]